Workbook

Sheet PPF Calculator
Y1: 30000
D2: PPF Calculator
H4: Prepared by: Karthikeyan Chellappa
E8: Input Parameters | H8: Calculations | M8: Output Values
E9: Investment Frequency | F9: Monthly | H9: PPF Interest Rate | K9: 0.087 | M9: Maturity Amount | N9: =J250 -> 30000
E10: Investment Amount | F10: 83.25221793
H12: Year 1
E13: =IF(AND(F9="Monthly",F10*12>=150000),"Warning: Annual Investment should not exceed 1.5 lakh",IF(AND(F9="Quarterly",F10*4>150000),"Warning: Annual Investment should not exceed 1.5 lakh",IF(AND(F9="Half-Yearly",F10*2>150000),"Warning: Annual Investment should not exceed 1.5 lakh",IF(AND(F9="Annual",F10>150000),"Warning: Annual Investment should not exceed 1.5 lakh","")))) ->  | H13: Month | I13: Deposit | J13: Balance | K13: Interest
H14: Apr | I14: =$F$10 -> 83.25221793 | J14: =I14 -> 83.25221793 | K14: =J14*$K$9/12 -> 0.60357858
H15: May | I15: =IF($F$9="Monthly",$F$10,0) -> 83.25221793 | J15: =I15+J14 -> 166.5044359 | K15: 1.20715716
H16: Jun | I16: =IF($F$9="Monthly",$F$10,0) -> 83.25221793 | J16: =I16+J15 -> 249.7566538 | K16: 1.81073574
H17: Jul | I17: =IF(OR($F$9="Monthly",$F$9="Quarterly"),$F$10,0) -> 83.25221793 | J17: 333.0088717 | K17: 2.41431432
H18: Aug | I18: =IF($F$9="Monthly",$F$10,0) -> 83.25221793 | J18: 416.2610897 | K18: 3.0178929
H19: Sep | I19: =IF($F$9="Monthly",$F$10,0) -> 83.25221793 | J19: 499.5133076 | K19: 3.62147148
H20: Oct | I20: =IF($F$9<>"Annual",$F$10,0) -> 83.25221793 | J20: 582.7655255 | K20: 4.22505006
H21: Nov | I21: =IF($F$9="Monthly",$F$10,0) -> 83.25221793 | J21: 666.0177434 | K21: 4.82862864
H22: Dec | I22: =IF($F$9="Monthly",$F$10,0) -> 83.25221793 | J22: 749.2699614 | K22: 5.43220722
H23: Jan | I23: =IF(OR($F$9="Monthly",$F$9="Quarterly"),$F$10,0) -> 83.25221793 | J23: 832.5221793 | K23: 6.0357858
H24: Feb | I24: =IF($F$9="Monthly",$F$10,0) -> 83.25221793 | J24: 915.7743972 | K24: 6.63936438
H25: Mar | I25: =IF($F$9="Monthly",$F$10,0) -> 83.25221793 | J25: 999.0266152 | K25: 7.24294296
H26: Year End Balance | J26: =J25+SUM(K14:K25) -> 1046.105744
H28: Year 2
H29: Month | I29: Deposit | J29: Balance | K29: Interest
H30: Apr | I30: =$F$10 -> 83.25221793 | J30: =I30+J26 -> 1129.357962 | K30: =J30*$K$9/12 -> 8.187845227
H31: May | I31: =IF($F$9="Monthly",$F$10,0) -> 83.25221793 | J31: =I31+J30 -> 1212.61018 | K31: 8.791423807
H32: Jun | I32: =IF($F$9="Monthly",$F$10,0) -> 83.25221793 | J32: =I32+J31 -> 1295.862398 | K32: 9.395002387
H33: Jul | I33: =IF(OR($F$9="Monthly",$F$9="Quarterly"),$F$10,0) -> 83.25221793 | J33: 1379.114616 | K33: 9.998580967
H34: Aug | I34: =IF($F$9="Monthly",$F$10,0) -> 83.25221793 | J34: 1462.366834 | K34: 10.60215955
H35: Sep | I35: =IF($F$9="Monthly",$F$10,0) -> 83.25221793 | J35: 1545.619052 | K35: 11.20573813
H36: Oct | I36: =IF($F$9<>"Annual",$F$10,0) -> 83.25221793 | J36: 1628.87127 | K36: 11.80931671
H37: Nov | I37: =IF($F$9="Monthly",$F$10,0) -> 83.25221793 | J37: 1712.123488 | K37: 12.41289529
H38: Dec | I38: =IF($F$9="Monthly",$F$10,0) -> 83.25221793 | J38: 1795.375706 | K38: 13.01647387
H39: Jan | I39: =IF(OR($F$9="Monthly",$F$9="Quarterly"),$F$10,0) -> 83.25221793 | J39: 1878.627924 | K39: 13.62005245
H40: Feb | I40: =IF($F$9="Monthly",$F$10,0) -> 83.25221793 | J40: 1961.880142 | K40: 14.22363103
H41: Mar | I41: =IF($F$9="Monthly",$F$10,0) -> 83.25221793 | J41: 2045.13236 | K41: 14.82720961
H42: Year End Balance | J42: =J41+SUM(K30:K41) -> 2183.222689
H44: Year 3
H45: Month | I45: Deposit | J45: Balance | K45: Interest
H46: Apr | I46: =$F$10 -> 83.25221793 | J46: =I46+J42 -> 2266.474907 | K46: =J46*$K$9/12 -> 16.43194307
H47: May | I47: =IF($F$9="Monthly",$F$10,0) -> 83.25221793 | J47: =I47+J46 -> 2349.727124 | K47: 17.03552165
H48: Jun | I48: =IF($F$9="Monthly",$F$10,0) -> 83.25221793 | J48: =I48+J47 -> 2432.979342 | K48: 17.63910023
H49: Jul | I49: =IF(OR($F$9="Monthly",$F$9="Quarterly"),$F$10,0) -> 83.25221793 | J49: 2516.23156 | K49: 18.24267881
H50: Aug | I50: =IF($F$9="Monthly",$F$10,0) -> 83.25221793 | J50: 2599.483778 | K50: 18.84625739
H51: Sep | I51: =IF($F$9="Monthly",$F$10,0) -> 83.25221793 | J51: 2682.735996 | K51: 19.44983597
H52: Oct | I52: =IF($F$9<>"Annual",$F$10,0) -> 83.25221793 | J52: 2765.988214 | K52: 20.05341455
H53: Nov | I53: =IF($F$9="Monthly",$F$10,0) -> 83.25221793 | J53: 2849.240432 | K53: 20.65699313
H54: Dec | I54: =IF($F$9="Monthly",$F$10,0) -> 83.25221793 | J54: 2932.49265 | K54: 21.26057171
H55: Jan | I55: =IF(OR($F$9="Monthly",$F$9="Quarterly"),$F$10,0) -> 83.25221793 | J55: 3015.744868 | K55: 21.86415029
H56: Feb | I56: =IF($F$9="Monthly",$F$10,0) -> 83.25221793 | J56: 3098.997086 | K56: 22.46772887
H57: Mar | I57: =IF($F$9="Monthly",$F$10,0) -> 83.25221793 | J57: 3182.249304 | K57: 23.07130745
H58: Year End Balance | J58: =J57+SUM(K46:K57) -> 3419.268807
H60: Year 4
H61: Month | I61: Deposit | J61: Balance | K61: Interest
H62: Apr | I62: =$F$10 -> 83.25221793 | J62: =I62+J58 -> 3502.521025 | K62: =J62*$K$9/12 -> 25.39327743
H63: May | I63: =IF($F$9="Monthly",$F$10,0) -> 83.25221793 | J63: =I63+J62 -> 3585.773243 | K63: 25.99685601
H64: Jun | I64: =IF($F$9="Monthly",$F$10,0) -> 83.25221793 | J64: =I64+J63 -> 3669.025461 | K64: 26.60043459
H65: Jul | I65: =IF(OR($F$9="Monthly",$F$9="Quarterly"),$F$10,0) -> 83.25221793 | J65: 3752.277679 | K65: 27.20401317
H66: Aug | I66: =IF($F$9="Monthly",$F$10,0) -> 83.25221793 | J66: 3835.529897 | K66: 27.80759175
H67: Sep | I67: =IF($F$9="Monthly",$F$10,0) -> 83.25221793 | J67: 3918.782114 | K67: 28.41117033
H68: Oct | I68: =IF($F$9<>"Annual",$F$10,0) -> 83.25221793 | J68: 4002.034332 | K68: 29.01474891
H69: Nov | I69: =IF($F$9="Monthly",$F$10,0) -> 83.25221793 | J69: 4085.28655 | K69: 29.61832749
H70: Dec | I70: =IF($F$9="Monthly",$F$10,0) -> 83.25221793 | J70: 4168.538768 | K70: 30.22190607
H71: Jan | I71: =IF(OR($F$9="Monthly",$F$9="Quarterly"),$F$10,0) -> 83.25221793 | J71: 4251.790986 | K71: 30.82548465
H72: Feb | I72: =IF($F$9="Monthly",$F$10,0) -> 83.25221793 | J72: 4335.043204 | K72: 31.42906323
H73: Mar | I73: =IF($F$9="Monthly",$F$10,0) -> 83.25221793 | J73: 4418.295422 | K73: 32.03264181
H74: Year End Balance | J74: =J73+SUM(K62:K73) -> 4762.850937
H76: Year 5
H77: Month | I77: Deposit | J77: Balance | K77: Interest
H78: Apr | I78: =$F$10 -> 83.25221793 | J78: =I78+J74 -> 4846.103155 | K78: =J78*$K$9/12 -> 35.13424788
H79: May | I79: =IF($F$9="Monthly",$F$10,0) -> 83.25221793 | J79: =I79+J78 -> 4929.355373 | K79: 35.73782646
H80: Jun | I80: =IF($F$9="Monthly",$F$10,0) -> 83.25221793 | J80: =I80+J79 -> 5012.607591 | K80: 36.34140504
H81: Jul | I81: =IF(OR($F$9="Monthly",$F$9="Quarterly"),$F$10,0) -> 83.25221793 | J81: 5095.859809 | K81: 36.94498362
H82: Aug | I82: =IF($F$9="Monthly",$F$10,0) -> 83.25221793 | J82: 5179.112027 | K82: 37.5485622
H83: Sep | I83: =IF($F$9="Monthly",$F$10,0) -> 83.25221793 | J83: 5262.364245 | K83: 38.15214078
H84: Oct | I84: =IF($F$9<>"Annual",$F$10,0) -> 83.25221793 | J84: 5345.616463 | K84: 38.75571936
H85: Nov | I85: =IF($F$9="Monthly",$F$10,0) -> 83.25221793 | J85: 5428.868681 | K85: 39.35929794
H86: Dec | I86: =IF($F$9="Monthly",$F$10,0) -> 83.25221793 | J86: 5512.120899 | K86: 39.96287652
H87: Jan | I87: =IF(OR($F$9="Monthly",$F$9="Quarterly"),$F$10,0) -> 83.25221793 | J87: 5595.373117 | K87: 40.5664551
H88: Feb | I88: =IF($F$9="Monthly",$F$10,0) -> 83.25221793 | J88: 5678.625335 | K88: 41.17003368
H89: Mar | I89: =IF($F$9="Monthly",$F$10,0) -> 83.25221793 | J89: 5761.877553 | K89: 41.77361226
H90: Year End Balance | J90: =J89+SUM(K78:K89) -> 6223.324713
H92: Year 6
H93: Month | I93: Deposit | J93: Balance | K93: Interest
H94: Apr | I94: =$F$10 -> 83.25221793 | J94: =I94+J90 -> 6306.576931 | K94: =J94*$K$9/12 -> 45.72268275
H95: May | I95: =IF($F$9="Monthly",$F$10,0) -> 83.25221793 | J95: =I95+J94 -> 6389.829149 | K95: 46.32626133
H96: Jun | I96: =IF($F$9="Monthly",$F$10,0) -> 83.25221793 | J96: =I96+J95 -> 6473.081367 | K96: 46.92983991
H97: Jul | I97: =IF(OR($F$9="Monthly",$F$9="Quarterly"),$F$10,0) -> 83.25221793 | J97: 6556.333585 | K97: 47.53341849
H98: Aug | I98: =IF($F$9="Monthly",$F$10,0) -> 83.25221793 | J98: 6639.585803 | K98: 48.13699707
H99: Sep | I99: =IF($F$9="Monthly",$F$10,0) -> 83.25221793 | J99: 6722.838021 | K99: 48.74057565
H100: Oct | I100: =IF($F$9<>"Annual",$F$10,0) -> 83.25221793 | J100: 6806.090239 | K100: 49.34415423
H101: Nov | I101: =IF($F$9="Monthly",$F$10,0) -> 83.25221793 | J101: 6889.342457 | K101: 49.94773281
H102: Dec | I102: =IF($F$9="Monthly",$F$10,0) -> 83.25221793 | J102: 6972.594675 | K102: 50.55131139
H103: Jan | I103: =IF(OR($F$9="Monthly",$F$9="Quarterly"),$F$10,0) -> 83.25221793 | J103: 7055.846893 | K103: 51.15488997
H104: Feb | I104: =IF($F$9="Monthly",$F$10,0) -> 83.25221793 | J104: 7139.099111 | K104: 51.75846855
H105: Mar | I105: =IF($F$9="Monthly",$F$10,0) -> 83.25221793 | J105: 7222.351329 | K105: 52.36204713
H106: Year End Balance | J106: =J105+SUM(K94:K105) -> 7810.859708
H108: Year 7
H109: Month | I109: Deposit | J109: Balance | K109: Interest
H110: Apr | I110: =$F$10 -> 83.25221793 | J110: =I110+J106 -> 7894.111926 | K110: =J110*$K$9/12 -> 57.23231146
H111: May | I111: =IF($F$9="Monthly",$F$10,0) -> 83.25221793 | J111: =I111+J110 -> 7977.364144 | K111: 57.83589004
H112: Jun | I112: =IF($F$9="Monthly",$F$10,0) -> 83.25221793 | J112: =I112+J111 -> 8060.616362 | K112: 58.43946862
H113: Jul | I113: =IF(OR($F$9="Monthly",$F$9="Quarterly"),$F$10,0) -> 83.25221793 | J113: 8143.86858 | K113: 59.0430472
H114: Aug | I114: =IF($F$9="Monthly",$F$10,0) -> 83.25221793 | J114: 8227.120798 | K114: 59.64662578
H115: Sep | I115: =IF($F$9="Monthly",$F$10,0) -> 83.25221793 | J115: 8310.373016 | K115: 60.25020436
H116: Oct | I116: =IF($F$9<>"Annual",$F$10,0) -> 83.25221793 | J116: 8393.625233 | K116: 60.85378294
H117: Nov | I117: =IF($F$9="Monthly",$F$10,0) -> 83.25221793 | J117: 8476.877451 | K117: 61.45736152
H118: Dec | I118: =IF($F$9="Monthly",$F$10,0) -> 83.25221793 | J118: 8560.129669 | K118: 62.0609401
H119: Jan | I119: =IF(OR($F$9="Monthly",$F$9="Quarterly"),$F$10,0) -> 83.25221793 | J119: 8643.381887 | K119: 62.66451868
H120: Feb | I120: =IF($F$9="Monthly",$F$10,0) -> 83.25221793 | J120: 8726.634105 | K120: 63.26809726
H121: Mar | I121: =IF($F$9="Monthly",$F$10,0) -> 83.25221793 | J121: 8809.886323 | K121: 63.87167584
H122: Year End Balance | J122: =J121+SUM(K110:K121) -> 9536.510247
H124: Year 8
H125: Month | I125: Deposit | J125: Balance | K125: Interest
H126: Apr | I126: =$F$10 -> 83.25221793 | J126: =I126+J122 -> 9619.762465 | K126: =J126*$K$9/12 -> 69.74327787
H127: May | I127: =IF($F$9="Monthly",$F$10,0) -> 83.25221793 | J127: =I127+J126 -> 9703.014683 | K127: 70.34685645
H128: Jun | I128: =IF($F$9="Monthly",$F$10,0) -> 83.25221793 | J128: =I128+J127 -> 9786.266901 | K128: 70.95043503
H129: Jul | I129: =IF(OR($F$9="Monthly",$F$9="Quarterly"),$F$10,0) -> 83.25221793 | J129: 9869.519119 | K129: 71.55401361
H130: Aug | I130: =IF($F$9="Monthly",$F$10,0) -> 83.25221793 | J130: 9952.771337 | K130: 72.15759219
H131: Sep | I131: =IF($F$9="Monthly",$F$10,0) -> 83.25221793 | J131: 10036.02355 | K131: 72.76117077
H132: Oct | I132: =IF($F$9<>"Annual",$F$10,0) -> 83.25221793 | J132: 10119.27577 | K132: 73.36474935
H133: Nov | I133: =IF($F$9="Monthly",$F$10,0) -> 83.25221793 | J133: 10202.52799 | K133: 73.96832793
H134: Dec | I134: =IF($F$9="Monthly",$F$10,0) -> 83.25221793 | J134: 10285.78021 | K134: 74.57190651
H135: Jan | I135: =IF(OR($F$9="Monthly",$F$9="Quarterly"),$F$10,0) -> 83.25221793 | J135: 10369.03243 | K135: 75.17548509
H136: Feb | I136: =IF($F$9="Monthly",$F$10,0) -> 83.25221793 | J136: 10452.28464 | K136: 75.77906367
H137: Mar | I137: =IF($F$9="Monthly",$F$10,0) -> 83.25221793 | J137: 10535.53686 | K137: 76.38264225
H138: Year End Balance | J138: =J137+SUM(K126:K137) -> 11412.29238
H140: Year 9
H141: Month | I141: Deposit | J141: Balance | K141: Interest
H142: Apr | I142: =$F$10 -> 83.25221793 | J142: =I142+J138 -> 11495.5446 | K142: =J142*$K$9/12 -> 83.34269836
H143: May | I143: =IF($F$9="Monthly",$F$10,0) -> 83.25221793 | J143: =I143+J142 -> 11578.79682 | K143: 83.94627694
H144: Jun | I144: =IF($F$9="Monthly",$F$10,0) -> 83.25221793 | J144: =I144+J143 -> 11662.04904 | K144: 84.54985552
H145: Jul | I145: =IF(OR($F$9="Monthly",$F$9="Quarterly"),$F$10,0) -> 83.25221793 | J145: 11745.30125 | K145: 85.1534341
H146: Aug | I146: =IF($F$9="Monthly",$F$10,0) -> 83.25221793 | J146: 11828.55347 | K146: 85.75701268
H147: Sep | I147: =IF($F$9="Monthly",$F$10,0) -> 83.25221793 | J147: 11911.80569 | K147: 86.36059126
H148: Oct | I148: =IF($F$9<>"Annual",$F$10,0) -> 83.25221793 | J148: 11995.05791 | K148: 86.96416984
H149: Nov | I149: =IF($F$9="Monthly",$F$10,0) -> 83.25221793 | J149: 12078.31013 | K149: 87.56774842
H150: Dec | I150: =IF($F$9="Monthly",$F$10,0) -> 83.25221793 | J150: 12161.56234 | K150: 88.171327
H151: Jan | I151: =IF(OR($F$9="Monthly",$F$9="Quarterly"),$F$10,0) -> 83.25221793 | J151: 12244.81456 | K151: 88.77490558
H152: Feb | I152: =IF($F$9="Monthly",$F$10,0) -> 83.25221793 | J152: 12328.06678 | K152: 89.37848416
H153: Mar | I153: =IF($F$9="Monthly",$F$10,0) -> 83.25221793 | J153: 12411.319 | K153: 89.98206274
H154: Year End Balance | J154: =J153+SUM(K142:K153) -> 13451.26756
H156: Year 10
H157: Month | I157: Deposit | J157: Balance | K157: Interest
H158: Apr | I158: =$F$10 -> 83.25221793 | J158: =I158+J154 -> 13534.51978 | K158: =J158*$K$9/12 -> 98.12526842
H159: May | I159: =IF($F$9="Monthly",$F$10,0) -> 83.25221793 | J159: =I159+J158 -> 13617.772 | K159: 98.728847
H160: Jun | I160: =IF($F$9="Monthly",$F$10,0) -> 83.25221793 | J160: =I160+J159 -> 13701.02422 | K160: 99.33242558
H161: Jul | I161: =IF(OR($F$9="Monthly",$F$9="Quarterly"),$F$10,0) -> 83.25221793 | J161: 13784.27644 | K161: 99.93600416
H162: Aug | I162: =IF($F$9="Monthly",$F$10,0) -> 83.25221793 | J162: 13867.52865 | K162: 100.5395827
H163: Sep | I163: =IF($F$9="Monthly",$F$10,0) -> 83.25221793 | J163: 13950.78087 | K163: 101.1431613
H164: Oct | I164: =IF($F$9<>"Annual",$F$10,0) -> 83.25221793 | J164: 14034.03309 | K164: 101.7467399
H165: Nov | I165: =IF($F$9="Monthly",$F$10,0) -> 83.25221793 | J165: 14117.28531 | K165: 102.3503185
H166: Dec | I166: =IF($F$9="Monthly",$F$10,0) -> 83.25221793 | J166: 14200.53753 | K166: 102.9538971
H167: Jan | I167: =IF(OR($F$9="Monthly",$F$9="Quarterly"),$F$10,0) -> 83.25221793 | J167: 14283.78974 | K167: 103.5574756
H168: Feb | I168: =IF($F$9="Monthly",$F$10,0) -> 83.25221793 | J168: 14367.04196 | K168: 104.1610542
H169: Mar | I169: =IF($F$9="Monthly",$F$10,0) -> 83.25221793 | J169: 14450.29418 | K169: 104.7646328
H170: Year End Balance | J170: =J169+SUM(K158:K169) -> 15667.63359
H172: Year 11
H173: Month | I173: Deposit | J173: Balance | K173: Interest
H174: Apr | I174: =$F$10 -> 83.25221793 | J174: =I174+J170 -> 15750.88581 | K174: =J174*$K$9/12 -> 114.1939221
H175: May | I175: =IF($F$9="Monthly",$F$10,0) -> 83.25221793 | J175: =I175+J174 -> 15834.13802 | K175: 114.7975007
H176: Jun | I176: =IF($F$9="Monthly",$F$10,0) -> 83.25221793 | J176: =I176+J175 -> 15917.39024 | K176: 115.4010792
H177: Jul | I177: =IF(OR($F$9="Monthly",$F$9="Quarterly"),$F$10,0) -> 83.25221793 | J177: 16000.64246 | K177: 116.0046578
H178: Aug | I178: =IF($F$9="Monthly",$F$10,0) -> 83.25221793 | J178: 16083.89468 | K178: 116.6082364
H179: Sep | I179: =IF($F$9="Monthly",$F$10,0) -> 83.25221793 | J179: 16167.14689 | K179: 117.211815
H180: Oct | I180: =IF($F$9<>"Annual",$F$10,0) -> 83.25221793 | J180: 16250.39911 | K180: 117.8153936
H181: Nov | I181: =IF($F$9="Monthly",$F$10,0) -> 83.25221793 | J181: 16333.65133 | K181: 118.4189721
H182: Dec | I182: =IF($F$9="Monthly",$F$10,0) -> 83.25221793 | J182: 16416.90355 | K182: 119.0225507
H183: Jan | I183: =IF(OR($F$9="Monthly",$F$9="Quarterly"),$F$10,0) -> 83.25221793 | J183: 16500.15577 | K183: 119.6261293
H184: Feb | I184: =IF($F$9="Monthly",$F$10,0) -> 83.25221793 | J184: 16583.40798 | K184: 120.2297079
H185: Mar | I185: =IF($F$9="Monthly",$F$10,0) -> 83.25221793 | J185: 16666.6602 | K185: 120.8332865
H186: Year End Balance | J186: =J185+SUM(K174:K185) -> 18076.82345
H188: Year 12
H189: Month | I189: Deposit | J189: Balance | K189: Interest
H190: Apr | I190: =$F$10 -> 83.25221793 | J190: =I190+J186 -> 18160.07567 | K190: =J190*$K$9/12 -> 131.6605486
H191: May | I191: =IF($F$9="Monthly",$F$10,0) -> 83.25221793 | J191: =I191+J190 -> 18243.32789 | K191: 132.2641272
H192: Jun | I192: =IF($F$9="Monthly",$F$10,0) -> 83.25221793 | J192: =I192+J191 -> 18326.58011 | K192: 132.8677058
H193: Jul | I193: =IF(OR($F$9="Monthly",$F$9="Quarterly"),$F$10,0) -> 83.25221793 | J193: 18409.83233 | K193: 133.4712844
H194: Aug | I194: =IF($F$9="Monthly",$F$10,0) -> 83.25221793 | J194: 18493.08454 | K194: 134.0748629
H195: Sep | I195: =IF($F$9="Monthly",$F$10,0) -> 83.25221793 | J195: 18576.33676 | K195: 134.6784415
H196: Oct | I196: =IF($F$9<>"Annual",$F$10,0) -> 83.25221793 | J196: 18659.58898 | K196: 135.2820201
H197: Nov | I197: =IF($F$9="Monthly",$F$10,0) -> 83.25221793 | J197: 18742.8412 | K197: 135.8855987
H198: Dec | I198: =IF($F$9="Monthly",$F$10,0) -> 83.25221793 | J198: 18826.09341 | K198: 136.4891773
H199: Jan | I199: =IF(OR($F$9="Monthly",$F$9="Quarterly"),$F$10,0) -> 83.25221793 | J199: 18909.34563 | K199: 137.0927558
H200: Feb | I200: =IF($F$9="Monthly",$F$10,0) -> 83.25221793 | J200: 18992.59785 | K200: 137.6963344
H201: Mar | I201: =IF($F$9="Monthly",$F$10,0) -> 83.25221793 | J201: 19075.85007 | K201: 138.299913
H202: Year End Balance | J202: =J201+SUM(K190:K201) -> 20695.61284
H204: Year 13
H205: Month | I205: Deposit | J205: Balance | K205: Interest
H206: Apr | I206: =$F$10 -> 83.25221793 | J206: =I206+J202 -> 20778.86506 | K206: =J206*$K$9/12 -> 150.6467717
H207: May | I207: =IF($F$9="Monthly",$F$10,0) -> 83.25221793 | J207: =I207+J206 -> 20862.11727 | K207: 151.2503502
H208: Jun | I208: =IF($F$9="Monthly",$F$10,0) -> 83.25221793 | J208: =I208+J207 -> 20945.36949 | K208: 151.8539288
H209: Jul | I209: =IF(OR($F$9="Monthly",$F$9="Quarterly"),$F$10,0) -> 83.25221793 | J209: 21028.62171 | K209: 152.4575074
H210: Aug | I210: =IF($F$9="Monthly",$F$10,0) -> 83.25221793 | J210: 21111.87393 | K210: 153.061086
H211: Sep | I211: =IF($F$9="Monthly",$F$10,0) -> 83.25221793 | J211: 21195.12615 | K211: 153.6646646
H212: Oct | I212: =IF($F$9<>"Annual",$F$10,0) -> 83.25221793 | J212: 21278.37836 | K212: 154.2682431
H213: Nov | I213: =IF($F$9="Monthly",$F$10,0) -> 83.25221793 | J213: 21361.63058 | K213: 154.8718217
H214: Dec | I214: =IF($F$9="Monthly",$F$10,0) -> 83.25221793 | J214: 21444.8828 | K214: 155.4754003
H215: Jan | I215: =IF(OR($F$9="Monthly",$F$9="Quarterly"),$F$10,0) -> 83.25221793 | J215: 21528.13502 | K215: 156.0789789
H216: Feb | I216: =IF($F$9="Monthly",$F$10,0) -> 83.25221793 | J216: 21611.38724 | K216: 156.6825575
H217: Mar | I217: =IF($F$9="Monthly",$F$10,0) -> 83.25221793 | J217: 21694.63945 | K217: 157.286136
... 31 more rows

Sheet Goal Calculator
A1: Goal Calculator | L1: ='PPF Calculator'!F9 -> Monthly | N1: Monthly | O1: 12
A2: Determine the fixed investment need to obtain a certain maturity value | L2: =INDEX(N1:O4,MATCH(L1,N1:N4,0),2) -> 12 | N2: Quarterly | O2: 4
N3: Half-yearly | O3: 2
A4: Step 1 | B4: Enter maturity value required | E4: 30000 | F4: Enter current investment limit | I4: 150000 | N4: Annual | O4: 1
A6: Step 2 | B6: Go to PPF Calculator sheet. Select investment frequency and the interest rate
A8: Step 3
A11: Fixed investment amount for the selected is | F11: 83.25221793
A12: =IF(F11*L2>I4, "Answer is above investment limit. Choose lower maturity value and repeat step 3","") -> 

Sheet PPF Matuirty date Calculation
F2: Year | G2: Financial Year
A3: Date when account was opened | B3: 2015-04-01 | D3: 2016-03-31 | E3: =IF(MONTH(B3)<=3,YEAR(B3),YEAR(B3)+1) -> 2016 | F3: 0 | G3: =CONCATENATE("FY ",H3," - ",I3) -> FY 2015 - 2016 | H3: =IF(MONTH(B3)<=3,YEAR(B3)-1,YEAR(B3)) -> 2015 | I3: =H3+1 -> 2016
D4: 2016-03-31 | E4: =E3+1 -> 2017 | F4: =F3+1 -> 1 | G4: =CONCATENATE("FY ",H4," - ",I4) -> FY 2016 - 2017 | H4: =H3+1 -> 2016 | I4: =I3+1 -> 2017
A5: Date of maturity | B5: =DATE(E18,4,1) -> 2031-04-01 | D5: 2016-03-31 | E5: 2018 | F5: 2 | G5: FY 2017 - 2018 | H5: 2017 | I5: 2018
A6: If you wish to extend it has to be done before | D6: 2016-03-31 | E6: 2019 | F6: 3 | G6: FY 2018 - 2019 | H6: 2018 | I6: 2019 | K6: Loan eligibility
B7: =DATE(YEAR(B5),3,31) -> 2031-03-31 | D7: 2016-03-31 | E7: 2020 | F7: 4 | G7: FY 2019 - 2020 | H7: 2019 | I7: 2020
D8: 2016-03-31 | E8: 2021 | F8: 5 | G8: FY 2020 - 2021 | H8: 2020 | I8: 2021
A9: Date when account was extended | B9: =B5 -> 2031-04-01 | D9: 2016-03-31 | E9: 2022 | F9: 6 | G9: FY 2021 - 2022 | H9: 2021 | I9: 2022 | J9: Withdrawl possible
D10: 2016-03-31 | E10: 2023 | F10: 7 | G10: FY 2022 - 2023 | H10: 2022 | I10: 2023
A11: Date of maturity | B11: =DATE(E26,4,1) -> 2036-04-01 | D11: 2016-03-31 | E11: 2024 | F11: 8 | G11: FY 2023 - 2024 | H11: 2023 | I11: 2024
D12: 2016-03-31 | E12: 2025 | F12: 9 | G12: FY 2024 - 2025 | H12: 2024 | I12: 2025
D13: 2016-03-31 | E13: 2026 | F13: 10 | G13: FY 2025 - 2026 | H13: 2025 | I13: 2026
D14: 2016-03-31 | E14: 2027 | F14: 11 | G14: FY 2026 - 2027 | H14: 2026 | I14: 2027
D15: 2016-03-31 | E15: 2028 | F15: 12 | G15: FY 2027 - 2028 | H15: 2027 | I15: 2028
D16: 2016-03-31 | E16: 2029 | F16: 13 | G16: FY 2028 - 2029 | H16: 2028 | I16: 2029
D17: 2016-03-31 | E17: 2030 | F17: 14 | G17: FY 2029 - 2030 | H17: 2029 | I17: 2030
D18: 2016-03-31 | E18: 2031 | F18: 15 | G18: FY 2030 - 2031 | H18: 2030 | I18: 2031
D20: For Extension only
F21: Year | G21: Financial Year | J21: Withdrawl possible = 60% of last FY balance
D22: 2016-03-31 | E22: =YEAR(B9)+1 -> 2032 | F22: 1 | G22: =CONCATENATE("FY ",H22," - ",I22) -> FY 2031 - 2032 | H22: =YEAR(B9) -> 2031 | I22: =H22+1 -> 2032
D23: 2016-03-31 | E23: =E22+1 -> 2033 | F23: 2 | G23: =CONCATENATE("FY ",H23," - ",I23) -> FY 2032 - 2033 | H23: =H22+1 -> 2032 | I23: 2033
D24: 2016-03-31 | E24: 2034 | F24: 3 | G24: =CONCATENATE("FY ",H24," - ",I24) -> FY 2033 - 2034 | H24: 2033 | I24: 2034
D25: 2016-03-31 | E25: 2035 | F25: 4 | G25: =CONCATENATE("FY ",H25," - ",I25) -> FY 2034 - 2035 | H25: 2034 | I25: 2035
D26: 2016-03-31 | E26: 2036 | F26: 5 | G26: =CONCATENATE("FY ",H26," - ",I26) -> FY 2035 - 2036 | H26: 2035 | I26: 2036

Sheet PPF Tracker
AD1: before 5th
D2: PPF Tracker | AD2: after 5th
E5: Enter data only in green cells | J5: Account opening date | M5: ='PPF Matuirty date Calculation'!B3 -> 2015-04-01 | O5: This has to be entered in "PPF Matuirty date Calculation" sheet
J6: Maturity Date | M6: ='PPF Matuirty date Calculation'!B5 -> 2031-04-01
J8: Balance on March 31st of | M8: 2016
J9: Set as zero for new accounts | M9: 121212
E11: =IF(DATE(MID(J12,4,4),4,1)>=$M$6,"Account has matured. No further deposits are possible unless extended for 5Y years. Account can be kept alive without deposits","") -> 
D12: =IF(ISERROR(INDEX('PPF Matuirty date Calculation'!$F$3:$G$18,MATCH('PPF Tracker'!J12,'PPF Matuirty date Calculation'!$G$3:$G$18,0),1)),D10+1,INDEX('PPF Matuirty date Calculation'!$F$3:$G$18,MATCH('PPF Tracker'!J12,'PPF Matuirty date Calculation'!$G$3:$G$18,0),1)) -> 1 | I12: 1 | J12: =CONCATENATE("FY ",$M$8+I12-1," - ",$M$8+I12) -> FY 2016 - 2017 | O12: =IF(ISERROR(CONCATENATE(INDEX('PPF Matuirty date Calculation'!$F$3:$G$18,MATCH('PPF Tracker'!J12,'PPF Matuirty date Calculation'!$G$3:$G$18,0),1),"th financial year")),CONCATENATE(D12,"th financial year"),CONCATENATE(INDEX('PPF Matuirty date Calculation'!$F$3:$G$18,MATCH('PPF Tracker'!J12,'PPF Matuirty date Calculation'!$G$3:$G$18,0),1),"th financial year")) -> 1th financial year
E13: =IF(ISERROR(IF(AND(D12>=3,D12<=6),"Loan amount available","")),"",IF(AND(D12>=3,D12<=6),"Loan amount available","")) ->  | F13: =IF(ISERROR(IF(D13="Loan amount available",25%*#REF!,"")),"",IF(D13="Loan amount available",25%*#REF!,"")) ->  | G13: Interest rate | H13: Deposited | J13: Month | K13: Deposit | L13: Balance | M13: Interest | O13: =IF(INDEX('PPF Matuirty date Calculation'!$F$3:$G$18,MATCH('PPF Tracker'!J12,'PPF Matuirty date Calculation'!$G$3:$G$18,0),1)>5,"Withdrawal","No withdrawal possible") -> No withdrawal possible
G14: 0.081 | H14: before 5th | J14: Apr | K14: 5000 | L14: =$M$9+IF(H14="before 5th",K14,0) -> 126212 | M14: =L14*G14/12 -> 851.931
G15: =G14 -> 0.081 | H15: before 5th | J15: May | K15: 5000 | L15: =SUM($K$14:K14)+$M$9+IF(H15="before 5th",K15,0) -> 131212 | M15: =L15*G15/12 -> 885.681 | P15: PPF investment limit
G16: =G15 -> 0.081 | H16: before 5th | J16: Jun | K16: 5000 | L16: =SUM($K$14:K15)+$M$9+IF(H16="before 5th",K16,0) -> 136212 | M16: 919.431 | P16: 150000
H17: before 5th | J17: Jul | K17: 5000 | L17: =SUM($K$14:K16)+$M$9+IF(H17="before 5th",K17,0) -> 141212 | M17: 0 | P17: =IF(SUM(K14:K25)>P16,"Warning: total investment exceeds allowed limit","") -> 
G18: =G17 -> 0 | H18: before 5th | J18: Aug | K18: 5000 | L18: =SUM($K$14:K17)+$M$9+IF(H18="before 5th",K18,0) -> 146212 | M18: 0
G19: =G18 -> 0 | H19: before 5th | J19: Sep | K19: 5000 | L19: =SUM($K$14:K18)+$M$9+IF(H19="before 5th",K19,0) -> 151212 | M19: 0 | P19: =IF(N26>Q13,"Withdrawal is above limit","") -> 
H20: before 5th | J20: Oct | K20: 5000 | L20: =SUM($K$14:K19)+$M$9+IF(H20="before 5th",K20,0) -> 156212 | M20: 0
G21: =G20 -> 0 | H21: before 5th | J21: Nov | K21: 5000 | L21: =SUM($K$14:K20)+$M$9+IF(H21="before 5th",K21,0) -> 161212 | M21: 0
G22: =G21 -> 0 | H22: before 5th | J22: Dec | K22: 5000 | L22: =SUM($K$14:K21)+$M$9+IF(H22="before 5th",K22,0) -> 166212 | M22: 0
H23: before 5th | J23: Jan | K23: 5000 | L23: =SUM($K$14:K22)+$M$9+IF(H23="before 5th",K23,0) -> 171212 | M23: 0
G24: =G23 -> 0 | H24: before 5th | J24: Feb | K24: 5000 | L24: =SUM($K$14:K23)+$M$9+IF(H24="before 5th",K24,0) -> 176212 | M24: 0
G25: =G24 -> 0 | H25: before 5th | J25: Mar | K25: 5000 | L25: =SUM($K$14:K24)+$M$9+IF(H25="before 5th",K25,0) -> 181212 | M25: 0
D26: =D12 -> 1 | J26: Year End Balance | L26: =SUM(K14:K25)+SUM(M14:M25)+M9-N26 -> 183869.043 | N26: =O14 -> 0
E27: =IF(DATE(MID(J28,4,4),4,1)>=$M$6,"Account has matured. No further deposits are possible unless extended for 5Y years. Account can be kept alive without deposits","") -> 
D28: =IF(ISERROR(INDEX('PPF Matuirty date Calculation'!$F$3:$G$18,MATCH('PPF Tracker'!J28,'PPF Matuirty date Calculation'!$G$3:$G$18,0),1)),D26+1,INDEX('PPF Matuirty date Calculation'!$F$3:$G$18,MATCH('PPF Tracker'!J28,'PPF Matuirty date Calculation'!$G$3:$G$18,0),1)) -> 2 | I28: 2 | J28: =CONCATENATE("FY ",$M$8+I28-1," - ",$M$8+I28) -> FY 2017 - 2018 | O28: =IF(ISERROR(CONCATENATE(INDEX('PPF Matuirty date Calculation'!$F$3:$G$18,MATCH('PPF Tracker'!J28,'PPF Matuirty date Calculation'!$G$3:$G$18,0),1),"th financial year")),CONCATENATE(D28,"th financial year"),CONCATENATE(INDEX('PPF Matuirty date Calculation'!$F$3:$G$18,MATCH('PPF Tracker'!J28,'PPF Matuirty date Calculation'!$G$3:$G$18,0),1),"th financial year")) -> 2th financial year
E29: =IF(ISERROR(IF(AND(D28>=3,D28<=6),"Loan amount available","")),"",IF(AND(D28>=3,D28<=6),"Loan amount available","")) ->  | F29: =IF(ISERROR(IF(D29="Loan amount available",25%*L10,"")),"",IF(D29="Loan amount available",25%*L10,"")) ->  | G29: Interest rate | H29: Deposited | J29: Month | K29: Deposit | L29: Balance | M29: Interest | O29: =IF(ISERROR(IF(INDEX('PPF Matuirty date Calculation'!$F$3:$G$18,MATCH('PPF Tracker'!J28,'PPF Matuirty date Calculation'!$G$3:$G$18,0),1)>5,"Withdrawal","No withdrawal possible")),"no withdrawal limit",IF(INDEX('PPF Matuirty date Calculation'!$F$3:$G$18,MATCH('PPF Tracker'!J28,'PPF Matuirty date Calculation'!$G$3:$G$18,0),1)>5,"Withdrawal","No withdrawal possible")) -> No withdrawal possible
H30: before 5th | J30: Apr | L30: =$L$26+IF(H30="before 5th",K30,0) -> 183869.043 | M30: =L30*G30/12 -> 0
G31: 0 | H31: before 5th | J31: May | L31: =SUM($K$30:K30)+$L$26+IF(H31="before 5th",K31,0) -> 183869.043 | M31: =L31*G31/12 -> 0 | P31: PPF investment limit
G32: =G31 -> 0 | H32: before 5th | J32: Jun | L32: =SUM($K$30:K31)+$L$26+IF(H32="before 5th",K32,0) -> 183869.043 | M32: 0 | P32: 150000
H33: before 5th | J33: Jul | L33: =SUM($K$30:K32)+$L$26+IF(H33="before 5th",K33,0) -> 183869.043 | M33: 0 | P33: =IF(SUM(K30:K41)>P32,"Warning: total investment exceeds allowed limit","") -> 
G34: =G33 -> 0 | H34: before 5th | J34: Aug | L34: =SUM($K$30:K33)+$L$26+IF(H34="before 5th",K34,0) -> 183869.043 | M34: 0
G35: =G34 -> 0 | H35: before 5th | J35: Sep | L35: =SUM($K$30:K34)+$L$26+IF(H35="before 5th",K35,0) -> 183869.043 | M35: 0 | P35: =IF(N42>Q29,"Withdrawal is above limit","") -> 
H36: before 5th | J36: Oct | L36: =SUM($K$30:K35)+$L$26+IF(H36="before 5th",K36,0) -> 183869.043 | M36: 0
G37: =G36 -> 0 | H37: before 5th | J37: Nov | L37: =SUM($K$30:K36)+$L$26+IF(H37="before 5th",K37,0) -> 183869.043 | M37: 0
G38: =G37 -> 0 | H38: before 5th | J38: Dec | L38: =SUM($K$30:K37)+$L$26+IF(H38="before 5th",K38,0) -> 183869.043 | M38: 0
H39: before 5th | J39: Jan | L39: =SUM($K$30:K38)+$L$26+IF(H39="before 5th",K39,0) -> 183869.043 | M39: 0
G40: =G39 -> 0 | H40: before 5th | J40: Feb | L40: =SUM($K$30:K39)+$L$26+IF(H40="before 5th",K40,0) -> 183869.043 | M40: 0
G41: =G40 -> 0 | H41: before 5th | J41: Mar | L41: =SUM($K$30:K40)+$L$26+IF(H41="before 5th",K41,0) -> 183869.043 | M41: 0
D42: =D28 -> 2 | J42: Year End Balance | L42: =SUM(K30:K41)+SUM(M30:M41)+L26-N42 -> 183869.043 | N42: =O30 -> 0
E43: =IF(DATE(MID(J44,4,4),4,1)>=$M$6,"Account has matured. No further deposits are possible unless extended for 5Y years. Account can be kept alive without deposits","") -> 
D44: =IF(ISERROR(INDEX('PPF Matuirty date Calculation'!$F$3:$G$18,MATCH('PPF Tracker'!J44,'PPF Matuirty date Calculation'!$G$3:$G$18,0),1)),D42+1,INDEX('PPF Matuirty date Calculation'!$F$3:$G$18,MATCH('PPF Tracker'!J44,'PPF Matuirty date Calculation'!$G$3:$G$18,0),1)) -> 3 | I44: =I28+1 -> 3 | J44: =CONCATENATE("FY ",$M$8+I44-1," - ",$M$8+I44) -> FY 2018 - 2019 | O44: =IF(ISERROR(CONCATENATE(INDEX('PPF Matuirty date Calculation'!$F$3:$G$18,MATCH('PPF Tracker'!J44,'PPF Matuirty date Calculation'!$G$3:$G$18,0),1),"th financial year")),CONCATENATE(D44,"th financial year"),CONCATENATE(INDEX('PPF Matuirty date Calculation'!$F$3:$G$18,MATCH('PPF Tracker'!J44,'PPF Matuirty date Calculation'!$G$3:$G$18,0),1),"th financial year")) -> 3th financial year
E45: =IF(ISERROR(IF(AND(D44>=3,D44<=6),"Loan amount available","")),"",IF(AND(D44>=3,D44<=6),"Loan amount available","")) -> Loan amount available | F45: =IF(ISERROR(IF(E45="Loan amount available",25%*L26,"")),"",IF(E45="Loan amount available",25%*L26,"")) -> 45967.26075 | G45: Interest rate | H45: Deposited | J45: Month | K45: Deposit | L45: Balance | M45: Interest | O45: =IF(ISERROR(IF(INDEX('PPF Matuirty date Calculation'!$F$3:$G$18,MATCH('PPF Tracker'!J44,'PPF Matuirty date Calculation'!$G$3:$G$18,0),1)>5,"Withdrawal","No withdrawal possible")),"no withdrawal limit",IF(INDEX('PPF Matuirty date Calculation'!$F$3:$G$18,MATCH('PPF Tracker'!J44,'PPF Matuirty date Calculation'!$G$3:$G$18,0),1)>5,"Withdrawal","No withdrawal possible")) -> No withdrawal possible
H46: before 5th | J46: Apr | L46: =$L$42+IF(H46="before 5th",K46,0) -> 183869.043 | M46: =L46*G46/12 -> 0
G47: 0 | H47: before 5th | J47: May | L47: =SUM($K$46:K46)+$L$42+IF(H47="before 5th",K47,0) -> 183869.043 | M47: =L47*G47/12 -> 0 | P47: PPF investment limit
G48: =G47 -> 0 | H48: before 5th | J48: Jun | L48: =SUM($K$46:K47)+$L$42+IF(H48="before 5th",K48,0) -> 183869.043 | M48: 0 | P48: 150000
H49: before 5th | J49: Jul | L49: =SUM($K$46:K48)+$L$42+IF(H49="before 5th",K49,0) -> 183869.043 | M49: 0 | P49: =IF(SUM(K46:K57)>P48,"Warning: total investment exceeds allowed limit","") -> 
G50: =G49 -> 0 | H50: before 5th | J50: Aug | L50: =SUM($K$46:K49)+$L$42+IF(H50="before 5th",K50,0) -> 183869.043 | M50: 0
G51: =G50 -> 0 | H51: before 5th | J51: Sep | L51: =SUM($K$46:K50)+$L$42+IF(H51="before 5th",K51,0) -> 183869.043 | M51: 0 | P51: =IF(N58>Q45,"Withdrawal is above limit","") -> 
H52: before 5th | J52: Oct | L52: =SUM($K$46:K51)+$L$42+IF(H52="before 5th",K52,0) -> 183869.043 | M52: 0
G53: =G52 -> 0 | H53: before 5th | J53: Nov | L53: =SUM($K$46:K52)+$L$42+IF(H53="before 5th",K53,0) -> 183869.043 | M53: 0
G54: =G53 -> 0 | H54: before 5th | J54: Dec | L54: =SUM($K$46:K53)+$L$42+IF(H54="before 5th",K54,0) -> 183869.043 | M54: 0
H55: before 5th | J55: Jan | L55: =SUM($K$46:K54)+$L$42+IF(H55="before 5th",K55,0) -> 183869.043 | M55: 0
G56: =G55 -> 0 | H56: before 5th | J56: Feb | L56: =SUM($K$46:K55)+$L$42+IF(H56="before 5th",K56,0) -> 183869.043 | M56: 0
G57: =G56 -> 0 | H57: before 5th | J57: Mar | L57: =SUM($K$46:K56)+$L$42+IF(H57="before 5th",K57,0) -> 183869.043 | M57: 0
D58: =D44 -> 3 | J58: Year End Balance | L58: =SUM(K46:K57)+SUM(M46:M57)+L42-N58 -> 183869.043 | N58: =O46 -> 0
E59: =IF(DATE(MID(J60,4,4),4,1)>=$M$6,"Account has matured. No further deposits are possible unless extended for 5Y years. Account can be kept alive without deposits","") -> 
D60: =IF(ISERROR(INDEX('PPF Matuirty date Calculation'!$F$3:$G$18,MATCH('PPF Tracker'!J60,'PPF Matuirty date Calculation'!$G$3:$G$18,0),1)),D58+1,INDEX('PPF Matuirty date Calculation'!$F$3:$G$18,MATCH('PPF Tracker'!J60,'PPF Matuirty date Calculation'!$G$3:$G$18,0),1)) -> 4 | I60: =I44+1 -> 4 | J60: =CONCATENATE("FY ",$M$8+I60-1," - ",$M$8+I60) -> FY 2019 - 2020 | O60: =IF(ISERROR(CONCATENATE(INDEX('PPF Matuirty date Calculation'!$F$3:$G$18,MATCH('PPF Tracker'!J60,'PPF Matuirty date Calculation'!$G$3:$G$18,0),1),"th financial year")),CONCATENATE(D60,"th financial year"),CONCATENATE(INDEX('PPF Matuirty date Calculation'!$F$3:$G$18,MATCH('PPF Tracker'!J60,'PPF Matuirty date Calculation'!$G$3:$G$18,0),1),"th financial year")) -> 4th financial year
E61: =IF(ISERROR(IF(AND(D60>=3,D60<=6),"Loan amount available","")),"",IF(AND(D60>=3,D60<=6),"Loan amount available","")) -> Loan amount available | F61: =IF(ISERROR(IF(E61="Loan amount available",25%*L42,"")),"",IF(E61="Loan amount available",25%*L42,"")) -> 45967.26075 | G61: Interest rate | H61: Deposited | J61: Month | K61: Deposit | L61: Balance | M61: Interest | O61: =IF(ISERROR(IF(INDEX('PPF Matuirty date Calculation'!$F$3:$G$18,MATCH('PPF Tracker'!J60,'PPF Matuirty date Calculation'!$G$3:$G$18,0),1)>5,"Withdrawal","No withdrawal possible")),"no withdrawal limit",IF(INDEX('PPF Matuirty date Calculation'!$F$3:$G$18,MATCH('PPF Tracker'!J60,'PPF Matuirty date Calculation'!$G$3:$G$18,0),1)>5,"Withdrawal","No withdrawal possible")) -> No withdrawal possible
H62: before 5th | J62: Apr | L62: =$L$58+IF(H62="before 5th",K62,0) -> 183869.043 | M62: =L62*G62/12 -> 0
G63: 0 | H63: before 5th | J63: May | L63: =SUM($K$62:K62)+$L$58+IF(H63="before 5th",K63,0) -> 183869.043 | M63: =L63*G63/12 -> 0 | P63: PPF investment limit
G64: =G63 -> 0 | H64: before 5th | J64: Jun | L64: =SUM($K$62:K63)+$L$58+IF(H64="before 5th",K64,0) -> 183869.043 | M64: 0 | P64: 150000
H65: before 5th | J65: Jul | L65: =SUM($K$62:K64)+$L$58+IF(H65="before 5th",K65,0) -> 183869.043 | M65: 0 | P65: =IF(SUM(K62:K73)>P64,"Warning: total investment exceeds allowed limit","") -> 
G66: =G65 -> 0 | H66: before 5th | J66: Aug | L66: =SUM($K$62:K65)+$L$58+IF(H66="before 5th",K66,0) -> 183869.043 | M66: 0
G67: =G66 -> 0 | H67: before 5th | J67: Sep | L67: =SUM($K$62:K66)+$L$58+IF(H67="before 5th",K67,0) -> 183869.043 | M67: 0 | P67: =IF(N74>Q61,"Withdrawal is above limit","") -> 
H68: before 5th | J68: Oct | L68: =SUM($K$62:K67)+$L$58+IF(H68="before 5th",K68,0) -> 183869.043 | M68: 0
G69: =G68 -> 0 | H69: before 5th | J69: Nov | L69: =SUM($K$62:K68)+$L$58+IF(H69="before 5th",K69,0) -> 183869.043 | M69: 0
G70: =G69 -> 0 | H70: before 5th | J70: Dec | L70: =SUM($K$62:K69)+$L$58+IF(H70="before 5th",K70,0) -> 183869.043 | M70: 0
H71: before 5th | J71: Jan | L71: =SUM($K$62:K70)+$L$58+IF(H71="before 5th",K71,0) -> 183869.043 | M71: 0
G72: =G71 -> 0 | H72: before 5th | J72: Feb | L72: =SUM($K$62:K71)+$L$58+IF(H72="before 5th",K72,0) -> 183869.043 | M72: 0
G73: =G72 -> 0 | H73: before 5th | J73: Mar | L73: =SUM($K$62:K72)+$L$58+IF(H73="before 5th",K73,0) -> 183869.043 | M73: 0
D74: =D60 -> 4 | J74: Year End Balance | L74: =SUM(K62:K73)+SUM(M62:M73)+L58-N74 -> 183869.043 | N74: =O62 -> 0
E75: =IF(DATE(MID(J76,4,4),4,1)>=$M$6,"Account has matured. No further deposits are possible unless extended for 5Y years. Account can be kept alive without deposits","") -> 
D76: =IF(ISERROR(INDEX('PPF Matuirty date Calculation'!$F$3:$G$18,MATCH('PPF Tracker'!J76,'PPF Matuirty date Calculation'!$G$3:$G$18,0),1)),D74+1,INDEX('PPF Matuirty date Calculation'!$F$3:$G$18,MATCH('PPF Tracker'!J76,'PPF Matuirty date Calculation'!$G$3:$G$18,0),1)) -> 5 | I76: =I60+1 -> 5 | J76: =CONCATENATE("FY ",$M$8+I76-1," - ",$M$8+I76) -> FY 2020 - 2021 | O76: =IF(ISERROR(CONCATENATE(INDEX('PPF Matuirty date Calculation'!$F$3:$G$18,MATCH('PPF Tracker'!J76,'PPF Matuirty date Calculation'!$G$3:$G$18,0),1),"th financial year")),CONCATENATE(D76,"th financial year"),CONCATENATE(INDEX('PPF Matuirty date Calculation'!$F$3:$G$18,MATCH('PPF Tracker'!J76,'PPF Matuirty date Calculation'!$G$3:$G$18,0),1),"th financial year")) -> 5th financial year
E77: =IF(ISERROR(IF(AND(D76>=3,D76<=6),"Loan amount available","")),"",IF(AND(D76>=3,D76<=6),"Loan amount available","")) -> Loan amount available | F77: =IF(ISERROR(IF(D77="Loan amount available",25%*L58,"")),"",IF(D77="Loan amount available",25%*L58,"")) ->  | G77: Interest rate | H77: Deposited | J77: Month | K77: Deposit | L77: Balance | M77: Interest | O77: =IF(ISERROR(IF(INDEX('PPF Matuirty date Calculation'!$F$3:$G$18,MATCH('PPF Tracker'!J76,'PPF Matuirty date Calculation'!$G$3:$G$18,0),1)>5,"Withdrawal","No withdrawal possible")),"no withdrawal limit",IF(INDEX('PPF Matuirty date Calculation'!$F$3:$G$18,MATCH('PPF Tracker'!J76,'PPF Matuirty date Calculation'!$G$3:$G$18,0),1)>5,"Withdrawal","No withdrawal possible")) -> No withdrawal possible | P77: =IF(O77="no withdrawal limit","",IF(O77="No withdrawal possible","","Withdrawal limit")) ->  | Q77: =IF(O77="no withdrawal limit","",IF(O77="No withdrawal possible","",50%*MIN(L74,L26))) -> 
H78: before 5th | J78: Apr | L78: =$L$74+IF(H78="before 5th",K78,0) -> 183869.043 | M78: =L78*G78/12 -> 0
G79: 0 | H79: before 5th | J79: May | L79: =SUM($K$78:K78)+$L$74+IF(H79="before 5th",K79,0) -> 183869.043 | M79: =L79*G79/12 -> 0 | P79: PPF investment limit
G80: =G79 -> 0 | H80: before 5th | J80: Jun | L80: =SUM($K$78:K79)+$L$74+IF(H80="before 5th",K80,0) -> 183869.043 | M80: 0 | P80: 150000
H81: before 5th | J81: Jul | L81: =SUM($K$78:K80)+$L$74+IF(H81="before 5th",K81,0) -> 183869.043 | M81: 0 | P81: =IF(SUM(K78:K89)>P80,"Warning: total investment exceeds allowed limit","") -> 
G82: =G81 -> 0 | H82: before 5th | J82: Aug | L82: =SUM($K$78:K81)+$L$74+IF(H82="before 5th",K82,0) -> 183869.043 | M82: 0
G83: =G82 -> 0 | H83: before 5th | J83: Sep | L83: =SUM($K$78:K82)+$L$74+IF(H83="before 5th",K83,0) -> 183869.043 | M83: 0 | P83: =IF(N90>Q77,"Withdrawal is above limit","") -> 
H84: before 5th | J84: Oct | L84: =SUM($K$78:K83)+$L$74+IF(H84="before 5th",K84,0) -> 183869.043 | M84: 0
G85: =G84 -> 0 | H85: before 5th | J85: Nov | L85: =SUM($K$78:K84)+$L$74+IF(H85="before 5th",K85,0) -> 183869.043 | M85: 0
G86: =G85 -> 0 | H86: before 5th | J86: Dec | L86: =SUM($K$78:K85)+$L$74+IF(H86="before 5th",K86,0) -> 183869.043 | M86: 0
H87: before 5th | J87: Jan | L87: =SUM($K$78:K86)+$L$74+IF(H87="before 5th",K87,0) -> 183869.043 | M87: 0
G88: =G87 -> 0 | H88: before 5th | J88: Feb | L88: =SUM($K$78:K87)+$L$74+IF(H88="before 5th",K88,0) -> 183869.043 | M88: 0
G89: =G88 -> 0 | H89: before 5th | J89: Mar | L89: =SUM($K$78:K88)+$L$74+IF(H89="before 5th",K89,0) -> 183869.043 | M89: 0
D90: =D76 -> 5 | J90: Year End Balance | L90: =SUM(K78:K89)+SUM(M78:M89)+L74-N90 -> 183869.043 | N90: =O78 -> 0
E91: =IF(DATE(MID(J92,4,4),4,1)>=$M$6,"Account has matured. No further deposits are possible unless extended for 5Y years. Account can be kept alive without deposits","") -> 
D92: =IF(ISERROR(INDEX('PPF Matuirty date Calculation'!$F$3:$G$18,MATCH('PPF Tracker'!J92,'PPF Matuirty date Calculation'!$G$3:$G$18,0),1)),D90+1,INDEX('PPF Matuirty date Calculation'!$F$3:$G$18,MATCH('PPF Tracker'!J92,'PPF Matuirty date Calculation'!$G$3:$G$18,0),1)) -> 6 | I92: =I76+1 -> 6 | J92: =CONCATENATE("FY ",$M$8+I92-1," - ",$M$8+I92) -> FY 2021 - 2022 | O92: =IF(ISERROR(CONCATENATE(INDEX('PPF Matuirty date Calculation'!$F$3:$G$18,MATCH('PPF Tracker'!J92,'PPF Matuirty date Calculation'!$G$3:$G$18,0),1),"th financial year")),CONCATENATE(D92,"th financial year"),CONCATENATE(INDEX('PPF Matuirty date Calculation'!$F$3:$G$18,MATCH('PPF Tracker'!J92,'PPF Matuirty date Calculation'!$G$3:$G$18,0),1),"th financial year")) -> 6th financial year
E93: =IF(ISERROR(IF(AND(D92>=3,D92<=6),"Loan amount available","")),"",IF(AND(D92>=3,D92<=6),"Loan amount available","")) -> Loan amount available | F93: =IF(ISERROR(IF(D93="Loan amount available",25%*L74,"")),"",IF(D93="Loan amount available",25%*L74,"")) ->  | G93: Interest rate | H93: Deposited | J93: Month | K93: Deposit | L93: Balance | M93: Interest | O93: =IF(ISERROR(IF(INDEX('PPF Matuirty date Calculation'!$F$3:$G$18,MATCH('PPF Tracker'!J92,'PPF Matuirty date Calculation'!$G$3:$G$18,0),1)>5,"Withdrawal","No withdrawal possible")),"no withdrawal limit",IF(INDEX('PPF Matuirty date Calculation'!$F$3:$G$18,MATCH('PPF Tracker'!J92,'PPF Matuirty date Calculation'!$G$3:$G$18,0),1)>5,"Withdrawal","No withdrawal possible")) -> Withdrawal | P93: =IF(O93="no withdrawal limit","",IF(O93="No withdrawal possible","","Withdrawal limit")) -> Withdrawal limit | Q93: =IF(O93="no withdrawal limit","",IF(O93="No withdrawal possible","",50%*MIN(L90,L42))) -> 91934.5215
H94: before 5th | J94: Apr | L94: =$L$90+IF(H94="before 5th",K94,0) -> 183869.043 | M94: =L94*G94/12 -> 0
G95: 0 | H95: before 5th | J95: May | L95: =SUM($K$94:K94)+$L$90+IF(H95="before 5th",K95,0) -> 183869.043 | M95: =L95*G95/12 -> 0 | P95: PPF investment limit
G96: =G95 -> 0 | H96: before 5th | J96: Jun | L96: =SUM($K$94:K95)+$L$90+IF(H96="before 5th",K96,0) -> 183869.043 | M96: 0 | P96: 150000
H97: before 5th | J97: Jul | L97: =SUM($K$94:K96)+$L$90+IF(H97="before 5th",K97,0) -> 183869.043 | M97: 0 | P97: =IF(SUM(K94:K105)>P96,"Warning: total investment exceeds allowed limit","") -> 
G98: =G97 -> 0 | H98: before 5th | J98: Aug | L98: =SUM($K$94:K97)+$L$90+IF(H98="before 5th",K98,0) -> 183869.043 | M98: 0
G99: =G98 -> 0 | H99: before 5th | J99: Sep | L99: =SUM($K$94:K98)+$L$90+IF(H99="before 5th",K99,0) -> 183869.043 | M99: 0 | P99: =IF(N106>Q93,"Withdrawal is above limit","") -> 
H100: before 5th | J100: Oct | L100: =SUM($K$94:K99)+$L$90+IF(H100="before 5th",K100,0) -> 183869.043 | M100: 0
G101: =G100 -> 0 | H101: before 5th | J101: Nov | L101: =SUM($K$94:K100)+$L$90+IF(H101="before 5th",K101,0) -> 183869.043 | M101: 0
G102: =G101 -> 0 | H102: before 5th | J102: Dec | L102: =SUM($K$94:K101)+$L$90+IF(H102="before 5th",K102,0) -> 183869.043 | M102: 0
H103: before 5th | J103: Jan | L103: =SUM($K$94:K102)+$L$90+IF(H103="before 5th",K103,0) -> 183869.043 | M103: 0
G104: =G103 -> 0 | H104: before 5th | J104: Feb | L104: =SUM($K$94:K103)+$L$90+IF(H104="before 5th",K104,0) -> 183869.043 | M104: 0
G105: =G104 -> 0 | H105: before 5th | J105: Mar | L105: =SUM($K$94:K104)+$L$90+IF(H105="before 5th",K105,0) -> 183869.043 | M105: 0
D106: =D92 -> 6 | J106: Year End Balance | L106: =SUM(K94:K105)+SUM(M94:M105)+L90-N106 -> 183869.043 | N106: =O94 -> 0
E107: =IF(DATE(MID(J108,4,4),4,1)>=$M$6,"Account has matured. No further deposits are possible unless extended for 5Y years. Account can be kept alive without deposits","") -> 
D108: =IF(ISERROR(INDEX('PPF Matuirty date Calculation'!$F$3:$G$18,MATCH('PPF Tracker'!J108,'PPF Matuirty date Calculation'!$G$3:$G$18,0),1)),D106+1,INDEX('PPF Matuirty date Calculation'!$F$3:$G$18,MATCH('PPF Tracker'!J108,'PPF Matuirty date Calculation'!$G$3:$G$18,0),1)) -> 7 | I108: =I92+1 -> 7 | J108: =CONCATENATE("FY ",$M$8+I108-1," - ",$M$8+I108) -> FY 2022 - 2023 | O108: =IF(ISERROR(CONCATENATE(INDEX('PPF Matuirty date Calculation'!$F$3:$G$18,MATCH('PPF Tracker'!J108,'PPF Matuirty date Calculation'!$G$3:$G$18,0),1),"th financial year")),CONCATENATE(D108,"th financial year"),CONCATENATE(INDEX('PPF Matuirty date Calculation'!$F$3:$G$18,MATCH('PPF Tracker'!J108,'PPF Matuirty date Calculation'!$G$3:$G$18,0),1),"th financial year")) -> 7th financial year
E109: =IF(ISERROR(IF(AND(D108>=3,D108<=6),"Loan amount available","")),"",IF(AND(D108>=3,D108<=6),"Loan amount available","")) ->  | F109: =IF(ISERROR(IF(D109="Loan amount available",25%*L90,"")),"",IF(D109="Loan amount available",25%*L90,"")) ->  | G109: Interest rate | H109: Deposited | J109: Month | K109: Deposit | L109: Balance | M109: Interest | O109: =IF(ISERROR(IF(INDEX('PPF Matuirty date Calculation'!$F$3:$G$18,MATCH('PPF Tracker'!J108,'PPF Matuirty date Calculation'!$G$3:$G$18,0),1)>5,"Withdrawal","No withdrawal possible")),"no withdrawal limit",IF(INDEX('PPF Matuirty date Calculation'!$F$3:$G$18,MATCH('PPF Tracker'!J108,'PPF Matuirty date Calculation'!$G$3:$G$18,0),1)>5,"Withdrawal","No withdrawal possible")) -> Withdrawal | P109: =IF(O109="no withdrawal limit","",IF(O109="No withdrawal possible","","Withdrawal limit")) -> Withdrawal limit | Q109: =IF(O109="no withdrawal limit","",IF(O109="No withdrawal possible","",50%*MIN(L106,L58))) -> 91934.5215
H110: before 5th | J110: Apr | L110: =$L$106+IF(H110="before 5th",K110,0) -> 183869.043 | M110: =L110*G110/12 -> 0
G111: 0 | H111: before 5th | J111: May | L111: =SUM($K$110:K110)+$L$106+IF(H111="before 5th",K111,0) -> 183869.043 | M111: =L111*G111/12 -> 0 | P111: PPF investment limit
G112: =G111 -> 0 | H112: before 5th | J112: Jun | L112: =SUM($K$110:K111)+$L$106+IF(H112="before 5th",K112,0) -> 183869.043 | M112: 0 | P112: 150000
H113: before 5th | J113: Jul | L113: =SUM($K$110:K112)+$L$106+IF(H113="before 5th",K113,0) -> 183869.043 | M113: 0 | P113: =IF(SUM(K110:K121)>P112,"Warning: total investment exceeds allowed limit","") -> 
G114: =G113 -> 0 | H114: before 5th | J114: Aug | L114: =SUM($K$110:K113)+$L$106+IF(H114="before 5th",K114,0) -> 183869.043 | M114: 0
G115: =G114 -> 0 | H115: before 5th | J115: Sep | L115: =SUM($K$110:K114)+$L$106+IF(H115="before 5th",K115,0) -> 183869.043 | M115: 0 | P115: =IF(N122>Q109,"Withdrawal is above limit","") -> 
H116: before 5th | J116: Oct | L116: =SUM($K$110:K115)+$L$106+IF(H116="before 5th",K116,0) -> 183869.043 | M116: 0
G117: =G116 -> 0 | H117: before 5th | J117: Nov | L117: =SUM($K$110:K116)+$L$106+IF(H117="before 5th",K117,0) -> 183869.043 | M117: 0
G118: =G117 -> 0 | H118: before 5th | J118: Dec | L118: =SUM($K$110:K117)+$L$106+IF(H118="before 5th",K118,0) -> 183869.043 | M118: 0
H119: before 5th | J119: Jan | L119: =SUM($K$110:K118)+$L$106+IF(H119="before 5th",K119,0) -> 183869.043 | M119: 0
G120: =G119 -> 0 | H120: before 5th | J120: Feb | L120: =SUM($K$110:K119)+$L$106+IF(H120="before 5th",K120,0) -> 183869.043 | M120: 0
G121: =G120 -> 0 | H121: before 5th | J121: Mar | L121: =SUM($K$110:K120)+$L$106+IF(H121="before 5th",K121,0) -> 183869.043 | M121: 0
D122: =D108 -> 7 | J122: Year End Balance | L122: =SUM(K110:K121)+SUM(M110:M121)+L106-N122 -> 183869.043 | N122: =O110 -> 0
E123: =IF(DATE(MID(J124,4,4),4,1)>=$M$6,"Account has matured. No further deposits are possible unless extended for 5Y years. Account can be kept alive without deposits","") -> 
D124: =IF(ISERROR(INDEX('PPF Matuirty date Calculation'!$F$3:$G$18,MATCH('PPF Tracker'!J124,'PPF Matuirty date Calculation'!$G$3:$G$18,0),1)),D122+1,INDEX('PPF Matuirty date Calculation'!$F$3:$G$18,MATCH('PPF Tracker'!J124,'PPF Matuirty date Calculation'!$G$3:$G$18,0),1)) -> 8 | I124: =I108+1 -> 8 | J124: =CONCATENATE("FY ",$M$8+I124-1," - ",$M$8+I124) -> FY 2023 - 2024 | O124: =IF(ISERROR(CONCATENATE(INDEX('PPF Matuirty date Calculation'!$F$3:$G$18,MATCH('PPF Tracker'!J124,'PPF Matuirty date Calculation'!$G$3:$G$18,0),1),"th financial year")),CONCATENATE(D124,"th financial year"),CONCATENATE(INDEX('PPF Matuirty date Calculation'!$F$3:$G$18,MATCH('PPF Tracker'!J124,'PPF Matuirty date Calculation'!$G$3:$G$18,0),1),"th financial year")) -> 8th financial year
E125: =IF(ISERROR(IF(AND(D124>=3,D124<=6),"Loan amount available","")),"",IF(AND(D124>=3,D124<=6),"Loan amount available","")) ->  | F125: =IF(ISERROR(IF(D125="Loan amount available",25%*L106,"")),"",IF(D125="Loan amount available",25%*L106,"")) ->  | G125: Interest rate | H125: Deposited | J125: Month | K125: Deposit | L125: Balance | M125: Interest | O125: =IF(ISERROR(IF(INDEX('PPF Matuirty date Calculation'!$F$3:$G$18,MATCH('PPF Tracker'!J124,'PPF Matuirty date Calculation'!$G$3:$G$18,0),1)>5,"Withdrawal","No withdrawal possible")),"no withdrawal limit",IF(INDEX('PPF Matuirty date Calculation'!$F$3:$G$18,MATCH('PPF Tracker'!J124,'PPF Matuirty date Calculation'!$G$3:$G$18,0),1)>5,"Withdrawal","No withdrawal possible")) -> Withdrawal | P125: =IF(O125="no withdrawal limit","",IF(O125="No withdrawal possible","","Withdrawal limit")) -> Withdrawal limit | Q125: =IF(O125="no withdrawal limit","",IF(O125="No withdrawal possible","",50%*MIN(L122,L74))) -> 91934.5215
H126: before 5th | J126: Apr | L126: =$L$122+IF(H126="before 5th",K126,0) -> 183869.043 | M126: =L126*G126/12 -> 0
G127: 0 | H127: before 5th | J127: May | L127: =SUM($K$126:K126)+$L$122+IF(H127="before 5th",K127,0) -> 183869.043 | M127: =L127*G127/12 -> 0 | P127: PPF investment limit
G128: =G127 -> 0 | H128: before 5th | J128: Jun | L128: =SUM($K$126:K127)+$L$122+IF(H128="before 5th",K128,0) -> 183869.043 | M128: 0 | P128: 150000
H129: before 5th | J129: Jul | L129: =SUM($K$126:K128)+$L$122+IF(H129="before 5th",K129,0) -> 183869.043 | M129: 0 | P129: =IF(SUM(K126:K137)>P128,"Warning: total investment exceeds allowed limit","") -> 
G130: =G129 -> 0 | H130: before 5th | J130: Aug | L130: =SUM($K$126:K129)+$L$122+IF(H130="before 5th",K130,0) -> 183869.043 | M130: 0
G131: =G130 -> 0 | H131: before 5th | J131: Sep | L131: =SUM($K$126:K130)+$L$122+IF(H131="before 5th",K131,0) -> 183869.043 | M131: 0 | P131: =IF(N138>Q125,"Withdrawal is above limit","") -> 
H132: before 5th | J132: Oct | L132: =SUM($K$126:K131)+$L$122+IF(H132="before 5th",K132,0) -> 183869.043 | M132: 0
G133: =G132 -> 0 | H133: before 5th | J133: Nov | L133: =SUM($K$126:K132)+$L$122+IF(H133="before 5th",K133,0) -> 183869.043 | M133: 0
G134: =G133 -> 0 | H134: before 5th | J134: Dec | L134: =SUM($K$126:K133)+$L$122+IF(H134="before 5th",K134,0) -> 183869.043 | M134: 0
H135: before 5th | J135: Jan | L135: =SUM($K$126:K134)+$L$122+IF(H135="before 5th",K135,0) -> 183869.043 | M135: 0
G136: =G135 -> 0 | H136: before 5th | J136: Feb | L136: =SUM($K$126:K135)+$L$122+IF(H136="before 5th",K136,0) -> 183869.043 | M136: 0
G137: =G136 -> 0 | H137: before 5th | J137: Mar | L137: =SUM($K$126:K136)+$L$122+IF(H137="before 5th",K137,0) -> 183869.043 | M137: 0
D138: =D124 -> 8 | J138: Year End Balance | L138: =SUM(K126:K137)+SUM(M126:M137)+L122-N138 -> 183869.043 | N138: =O126 -> 0
E139: =IF(DATE(MID(J140,4,4),4,1)>=$M$6,"Account has matured. No further deposits are possible unless extended for 5Y years. Account can be kept alive without deposits","") -> 
D140: =IF(ISERROR(INDEX('PPF Matuirty date Calculation'!$F$3:$G$18,MATCH('PPF Tracker'!J140,'PPF Matuirty date Calculation'!$G$3:$G$18,0),1)),D138+1,INDEX('PPF Matuirty date Calculation'!$F$3:$G$18,MATCH('PPF Tracker'!J140,'PPF Matuirty date Calculation'!$G$3:$G$18,0),1)) -> 9 | I140: =I124+1 -> 9 | J140: =CONCATENATE("FY ",$M$8+I140-1," - ",$M$8+I140) -> FY 2024 - 2025 | O140: =IF(ISERROR(CONCATENATE(INDEX('PPF Matuirty date Calculation'!$F$3:$G$18,MATCH('PPF Tracker'!J140,'PPF Matuirty date Calculation'!$G$3:$G$18,0),1),"th financial year")),CONCATENATE(D140,"th financial year"),CONCATENATE(INDEX('PPF Matuirty date Calculation'!$F$3:$G$18,MATCH('PPF Tracker'!J140,'PPF Matuirty date Calculation'!$G$3:$G$18,0),1),"th financial year")) -> 9th financial year
E141: =IF(ISERROR(IF(AND(D140>=3,D140<=6),"Loan amount available","")),"",IF(AND(D140>=3,D140<=6),"Loan amount available","")) ->  | F141: =IF(ISERROR(IF(D141="Loan amount available",25%*L122,"")),"",IF(D141="Loan amount available",25%*L122,"")) ->  | G141: Interest rate | H141: Deposited | J141: Month | K141: Deposit | L141: Balance | M141: Interest | O141: =IF(ISERROR(IF(INDEX('PPF Matuirty date Calculation'!$F$3:$G$18,MATCH('PPF Tracker'!J140,'PPF Matuirty date Calculation'!$G$3:$G$18,0),1)>5,"Withdrawal","No withdrawal possible")),"no withdrawal limit",IF(INDEX('PPF Matuirty date Calculation'!$F$3:$G$18,MATCH('PPF Tracker'!J140,'PPF Matuirty date Calculation'!$G$3:$G$18,0),1)>5,"Withdrawal","No withdrawal possible")) -> Withdrawal | P141: =IF(O141="no withdrawal limit","",IF(O141="No withdrawal possible","","Withdrawal limit")) -> Withdrawal limit | Q141: =IF(O141="no withdrawal limit","",IF(O141="No withdrawal possible","",50%*MIN(L138,L90))) -> 91934.5215
H142: before 5th | J142: Apr | L142: =$L$138+IF(H142="before 5th",K142,0) -> 183869.043 | M142: =L142*G142/12 -> 0
G143: 0 | H143: before 5th | J143: May | L143: =SUM($K$142:K142)+$L$138+IF(H143="before 5th",K143,0) -> 183869.043 | M143: =L143*G143/12 -> 0 | P143: PPF investment limit
G144: =G143 -> 0 | H144: before 5th | J144: Jun | L144: =SUM($K$142:K143)+$L$138+IF(H144="before 5th",K144,0) -> 183869.043 | M144: 0 | P144: 150000
H145: before 5th | J145: Jul | L145: =SUM($K$142:K144)+$L$138+IF(H145="before 5th",K145,0) -> 183869.043 | M145: 0 | P145: =IF(SUM(K142:K153)>P144,"Warning: total investment exceeds allowed limit","") -> 
G146: =G145 -> 0 | H146: before 5th | J146: Aug | L146: =SUM($K$142:K145)+$L$138+IF(H146="before 5th",K146,0) -> 183869.043 | M146: 0
G147: =G146 -> 0 | H147: before 5th | J147: Sep | L147: =SUM($K$142:K146)+$L$138+IF(H147="before 5th",K147,0) -> 183869.043 | M147: 0 | P147: =IF(N154>Q141,"Withdrawal is above limit","") -> 
H148: before 5th | J148: Oct | L148: =SUM($K$142:K147)+$L$138+IF(H148="before 5th",K148,0) -> 183869.043 | M148: 0
G149: =G148 -> 0 | H149: before 5th | J149: Nov | L149: =SUM($K$142:K148)+$L$138+IF(H149="before 5th",K149,0) -> 183869.043 | M149: 0
G150: =G149 -> 0 | H150: before 5th | J150: Dec | L150: =SUM($K$142:K149)+$L$138+IF(H150="before 5th",K150,0) -> 183869.043 | M150: 0
H151: before 5th | J151: Jan | L151: =SUM($K$142:K150)+$L$138+IF(H151="before 5th",K151,0) -> 183869.043 | M151: 0
G152: =G151 -> 0 | H152: before 5th | J152: Feb | L152: =SUM($K$142:K151)+$L$138+IF(H152="before 5th",K152,0) -> 183869.043 | M152: 0
G153: =G152 -> 0 | H153: before 5th | J153: Mar | L153: =SUM($K$142:K152)+$L$138+IF(H153="before 5th",K153,0) -> 183869.043 | M153: 0
D154: =D140 -> 9 | J154: Year End Balance | L154: =SUM(K142:K153)+SUM(M142:M153)+L138-N154 -> 183869.043 | N154: =O142 -> 0
E155: =IF(DATE(MID(J156,4,4),4,1)>=$M$6,"Account has matured. No further deposits are possible unless extended for 5Y years. Account can be kept alive without deposits","") -> 
D156: =IF(ISERROR(INDEX('PPF Matuirty date Calculation'!$F$3:$G$18,MATCH('PPF Tracker'!J156,'PPF Matuirty date Calculation'!$G$3:$G$18,0),1)),D154+1,INDEX('PPF Matuirty date Calculation'!$F$3:$G$18,MATCH('PPF Tracker'!J156,'PPF Matuirty date Calculation'!$G$3:$G$18,0),1)) -> 10 | I156: =I140+1 -> 10 | J156: =CONCATENATE("FY ",$M$8+I156-1," - ",$M$8+I156) -> FY 2025 - 2026 | O156: =IF(ISERROR(CONCATENATE(INDEX('PPF Matuirty date Calculation'!$F$3:$G$18,MATCH('PPF Tracker'!J156,'PPF Matuirty date Calculation'!$G$3:$G$18,0),1),"th financial year")),CONCATENATE(D156,"th financial year"),CONCATENATE(INDEX('PPF Matuirty date Calculation'!$F$3:$G$18,MATCH('PPF Tracker'!J156,'PPF Matuirty date Calculation'!$G$3:$G$18,0),1),"th financial year")) -> 10th financial year
E157: =IF(ISERROR(IF(AND(D156>=3,D156<=6),"Loan amount available","")),"",IF(AND(D156>=3,D156<=6),"Loan amount available","")) ->  | F157: =IF(ISERROR(IF(D157="Loan amount available",25%*L138,"")),"",IF(D157="Loan amount available",25%*L138,"")) ->  | G157: Interest rate | H157: Deposited | J157: Month | K157: Deposit | L157: Balance | M157: Interest | O157: =IF(ISERROR(IF(INDEX('PPF Matuirty date Calculation'!$F$3:$G$18,MATCH('PPF Tracker'!J156,'PPF Matuirty date Calculation'!$G$3:$G$18,0),1)>5,"Withdrawal","No withdrawal possible")),"no withdrawal limit",IF(INDEX('PPF Matuirty date Calculation'!$F$3:$G$18,MATCH('PPF Tracker'!J156,'PPF Matuirty date Calculation'!$G$3:$G$18,0),1)>5,"Withdrawal","No withdrawal possible")) -> Withdrawal | P157: =IF(O157="no withdrawal limit","",IF(O157="No withdrawal possible","","Withdrawal limit")) -> Withdrawal limit | Q157: =IF(O157="no withdrawal limit","",IF(O157="No withdrawal possible","",50%*MIN(L154,L106))) -> 91934.5215
H158: before 5th | J158: Apr | L158: =$L$154+IF(H158="before 5th",K158,0) -> 183869.043 | M158: =L158*G158/12 -> 0
G159: 0 | H159: before 5th | J159: May | L159: =SUM($K$158:K158)+$L$154+IF(H159="before 5th",K159,0) -> 183869.043 | M159: =L159*G159/12 -> 0 | P159: PPF investment limit
G160: =G159 -> 0 | H160: before 5th | J160: Jun | L160: =SUM($K$158:K159)+$L$154+IF(H160="before 5th",K160,0) -> 183869.043 | M160: 0 | P160: 150000
H161: before 5th | J161: Jul | L161: =SUM($K$158:K160)+$L$154+IF(H161="before 5th",K161,0) -> 183869.043 | M161: 0 | P161: =IF(SUM(K158:K169)>P160,"Warning: total investment exceeds allowed limit","") -> 
G162: =G161 -> 0 | H162: before 5th | J162: Aug | L162: =SUM($K$158:K161)+$L$154+IF(H162="before 5th",K162,0) -> 183869.043 | M162: 0
G163: =G162 -> 0 | H163: before 5th | J163: Sep | L163: =SUM($K$158:K162)+$L$154+IF(H163="before 5th",K163,0) -> 183869.043 | M163: 0 | P163: =IF(N170>Q157,"Withdrawal is above limit","") -> 
H164: before 5th | J164: Oct | L164: =SUM($K$158:K163)+$L$154+IF(H164="before 5th",K164,0) -> 183869.043 | M164: 0
G165: =G164 -> 0 | H165: before 5th | J165: Nov | L165: =SUM($K$158:K164)+$L$154+IF(H165="before 5th",K165,0) -> 183869.043 | M165: 0
G166: =G165 -> 0 | H166: before 5th | J166: Dec | L166: =SUM($K$158:K165)+$L$154+IF(H166="before 5th",K166,0) -> 183869.043 | M166: 0
H167: before 5th | J167: Jan | L167: =SUM($K$158:K166)+$L$154+IF(H167="before 5th",K167,0) -> 183869.043 | M167: 0
G168: =G167 -> 0 | H168: before 5th | J168: Feb | L168: =SUM($K$158:K167)+$L$154+IF(H168="before 5th",K168,0) -> 183869.043 | M168: 0
G169: =G168 -> 0 | H169: before 5th | J169: Mar | L169: =SUM($K$158:K168)+$L$154+IF(H169="before 5th",K169,0) -> 183869.043 | M169: 0
D170: =D156 -> 10 | J170: Year End Balance | L170: =SUM(K158:K169)+SUM(M158:M169)+L154-N170 -> 183869.043 | N170: =O158 -> 0
E171: =IF(DATE(MID(J172,4,4),4,1)>=$M$6,"Account has matured. No further deposits are possible unless extended for 5Y years. Account can be kept alive without deposits","") -> 
D172: =IF(ISERROR(INDEX('PPF Matuirty date Calculation'!$F$3:$G$18,MATCH('PPF Tracker'!J172,'PPF Matuirty date Calculation'!$G$3:$G$18,0),1)),D170+1,INDEX('PPF Matuirty date Calculation'!$F$3:$G$18,MATCH('PPF Tracker'!J172,'PPF Matuirty date Calculation'!$G$3:$G$18,0),1)) -> 11 | I172: =I156+1 -> 11 | J172: =CONCATENATE("FY ",$M$8+I172-1," - ",$M$8+I172) -> FY 2026 - 2027 | O172: =IF(ISERROR(CONCATENATE(INDEX('PPF Matuirty date Calculation'!$F$3:$G$18,MATCH('PPF Tracker'!J172,'PPF Matuirty date Calculation'!$G$3:$G$18,0),1),"th financial year")),CONCATENATE(D172,"th financial year"),CONCATENATE(INDEX('PPF Matuirty date Calculation'!$F$3:$G$18,MATCH('PPF Tracker'!J172,'PPF Matuirty date Calculation'!$G$3:$G$18,0),1),"th financial year")) -> 11th financial year
E173: =IF(ISERROR(IF(AND(D172>=3,D172<=6),"Loan amount available","")),"",IF(AND(D172>=3,D172<=6),"Loan amount available","")) ->  | F173: =IF(ISERROR(IF(D173="Loan amount available",25%*L154,"")),"",IF(D173="Loan amount available",25%*L154,"")) ->  | G173: Interest rate | H173: Deposited | J173: Month | K173: Deposit | L173: Balance | M173: Interest | O173: =IF(ISERROR(IF(INDEX('PPF Matuirty date Calculation'!$F$3:$G$18,MATCH('PPF Tracker'!J172,'PPF Matuirty date Calculation'!$G$3:$G$18,0),1)>5,"Withdrawal","No withdrawal possible")),"no withdrawal limit",IF(INDEX('PPF Matuirty date Calculation'!$F$3:$G$18,MATCH('PPF Tracker'!J172,'PPF Matuirty date Calculation'!$G$3:$G$18,0),1)>5,"Withdrawal","No withdrawal possible")) -> Withdrawal | P173: =IF(O173="no withdrawal limit","",IF(O173="No withdrawal possible","","Withdrawal limit")) -> Withdrawal limit | Q173: =IF(O173="no withdrawal limit","",IF(O173="No withdrawal possible","",50%*MIN(L170,L122))) -> 91934.5215
H174: before 5th | J174: Apr | L174: =$L$170+IF(H174="before 5th",K174,0) -> 183869.043 | M174: =L174*G174/12 -> 0
G175: 0 | H175: before 5th | J175: May | L175: =SUM($K$174:K174)+$L$170+IF(H175="before 5th",K175,0) -> 183869.043 | M175: =L175*G175/12 -> 0 | P175: PPF investment limit
G176: =G175 -> 0 | H176: before 5th | J176: Jun | L176: =SUM($K$174:K175)+$L$170+IF(H176="before 5th",K176,0) -> 183869.043 | M176: 0 | P176: 150000
H177: before 5th | J177: Jul | L177: =SUM($K$174:K176)+$L$170+IF(H177="before 5th",K177,0) -> 183869.043 | M177: 0 | P177: =IF(SUM(K174:K185)>P176,"Warning: total investment exceeds allowed limit","") -> 
G178: =G177 -> 0 | H178: before 5th | J178: Aug | L178: =SUM($K$174:K177)+$L$170+IF(H178="before 5th",K178,0) -> 183869.043 | M178: 0
G179: =G178 -> 0 | H179: before 5th | J179: Sep | L179: =SUM($K$174:K178)+$L$170+IF(H179="before 5th",K179,0) -> 183869.043 | M179: 0 | P179: =IF(N186>Q173,"Withdrawal is above limit","") -> 
H180: before 5th | J180: Oct | L180: =SUM($K$174:K179)+$L$170+IF(H180="before 5th",K180,0) -> 183869.043 | M180: 0
G181: =G180 -> 0 | H181: before 5th | J181: Nov | L181: =SUM($K$174:K180)+$L$170+IF(H181="before 5th",K181,0) -> 183869.043 | M181: 0
G182: =G181 -> 0 | H182: before 5th | J182: Dec | L182: =SUM($K$174:K181)+$L$170+IF(H182="before 5th",K182,0) -> 183869.043 | M182: 0
H183: before 5th | J183: Jan | L183: =SUM($K$174:K182)+$L$170+IF(H183="before 5th",K183,0) -> 183869.043 | M183: 0
G184: =G183 -> 0 | H184: before 5th | J184: Feb | L184: =SUM($K$174:K183)+$L$170+IF(H184="before 5th",K184,0) -> 183869.043 | M184: 0
G185: =G184 -> 0 | H185: before 5th | J185: Mar | L185: =SUM($K$174:K184)+$L$170+IF(H185="before 5th",K185,0) -> 183869.043 | M185: 0
D186: =D172 -> 11 | J186: Year End Balance | L186: =SUM(K174:K185)+SUM(M174:M185)+L170-N186 -> 183869.043 | N186: =O174 -> 0
E187: =IF(DATE(MID(J188,4,4),4,1)>=$M$6,"Account has matured. No further deposits are possible unless extended for 5Y years. Account can be kept alive without deposits","") -> 
D188: =IF(ISERROR(INDEX('PPF Matuirty date Calculation'!$F$3:$G$18,MATCH('PPF Tracker'!J188,'PPF Matuirty date Calculation'!$G$3:$G$18,0),1)),D186+1,INDEX('PPF Matuirty date Calculation'!$F$3:$G$18,MATCH('PPF Tracker'!J188,'PPF Matuirty date Calculation'!$G$3:$G$18,0),1)) -> 12 | I188: =I172+1 -> 12 | J188: =CONCATENATE("FY ",$M$8+I188-1," - ",$M$8+I188) -> FY 2027 - 2028 | O188: =IF(ISERROR(CONCATENATE(INDEX('PPF Matuirty date Calculation'!$F$3:$G$18,MATCH('PPF Tracker'!J188,'PPF Matuirty date Calculation'!$G$3:$G$18,0),1),"th financial year")),CONCATENATE(D188,"th financial year"),CONCATENATE(INDEX('PPF Matuirty date Calculation'!$F$3:$G$18,MATCH('PPF Tracker'!J188,'PPF Matuirty date Calculation'!$G$3:$G$18,0),1),"th financial year")) -> 12th financial year
E189: =IF(ISERROR(IF(AND(D188>=3,D188<=6),"Loan amount available","")),"",IF(AND(D188>=3,D188<=6),"Loan amount available","")) ->  | F189: =IF(ISERROR(IF(D189="Loan amount available",25%*L170,"")),"",IF(D189="Loan amount available",25%*L170,"")) ->  | G189: Interest rate | H189: Deposited | J189: Month | K189: Deposit | L189: Balance | M189: Interest | O189: =IF(ISERROR(IF(INDEX('PPF Matuirty date Calculation'!$F$3:$G$18,MATCH('PPF Tracker'!J188,'PPF Matuirty date Calculation'!$G$3:$G$18,0),1)>5,"Withdrawal","No withdrawal possible")),"no withdrawal limit",IF(INDEX('PPF Matuirty date Calculation'!$F$3:$G$18,MATCH('PPF Tracker'!J188,'PPF Matuirty date Calculation'!$G$3:$G$18,0),1)>5,"Withdrawal","No withdrawal possible")) -> Withdrawal | P189: =IF(O189="no withdrawal limit","",IF(O189="No withdrawal possible","","Withdrawal limit")) -> Withdrawal limit | Q189: =IF(O189="no withdrawal limit","",IF(O189="No withdrawal possible","",50%*MIN(L186,L138))) -> 91934.5215
H190: before 5th | J190: Apr | L190: =$L$186+IF(H190="before 5th",K190,0) -> 183869.043 | M190: =L190*G190/12 -> 0
G191: 0 | H191: before 5th | J191: May | L191: =SUM($K$190:K190)+$L$186+IF(H191="before 5th",K191,0) -> 183869.043 | M191: =L191*G191/12 -> 0 | P191: PPF investment limit
G192: =G191 -> 0 | H192: before 5th | J192: Jun | L192: =SUM($K$190:K191)+$L$186+IF(H192="before 5th",K192,0) -> 183869.043 | M192: 0 | P192: 150000
H193: before 5th | J193: Jul | L193: =SUM($K$190:K192)+$L$186+IF(H193="before 5th",K193,0) -> 183869.043 | M193: 0 | P193: =IF(SUM(K190:K201)>P192,"Warning: total investment exceeds allowed limit","") -> 
G194: =G193 -> 0 | H194: before 5th | J194: Aug | L194: =SUM($K$190:K193)+$L$186+IF(H194="before 5th",K194,0) -> 183869.043 | M194: 0
G195: =G194 -> 0 | H195: before 5th | J195: Sep | L195: =SUM($K$190:K194)+$L$186+IF(H195="before 5th",K195,0) -> 183869.043 | M195: 0 | P195: =IF(N202>Q189,"Withdrawal is above limit","") -> 
H196: before 5th | J196: Oct | L196: =SUM($K$190:K195)+$L$186+IF(H196="before 5th",K196,0) -> 183869.043 | M196: 0
G197: =G196 -> 0 | H197: before 5th | J197: Nov | L197: =SUM($K$190:K196)+$L$186+IF(H197="before 5th",K197,0) -> 183869.043 | M197: 0
G198: =G197 -> 0 | H198: before 5th | J198: Dec | L198: =SUM($K$190:K197)+$L$186+IF(H198="before 5th",K198,0) -> 183869.043 | M198: 0
H199: before 5th | J199: Jan | L199: =SUM($K$190:K198)+$L$186+IF(H199="before 5th",K199,0) -> 183869.043 | M199: 0
G200: =G199 -> 0 | H200: before 5th | J200: Feb | L200: =SUM($K$190:K199)+$L$186+IF(H200="before 5th",K200,0) -> 183869.043 | M200: 0
G201: =G200 -> 0 | H201: before 5th | J201: Mar | L201: =SUM($K$190:K200)+$L$186+IF(H201="before 5th",K201,0) -> 183869.043 | M201: 0
D202: =D188 -> 12 | J202: Year End Balance | L202: =SUM(K190:K201)+SUM(M190:M201)+L186-N202 -> 183869.043 | N202: =O190 -> 0
E203: =IF(DATE(MID(J204,4,4),4,1)>=$M$6,"Account has matured. No further deposits are possible unless extended for 5Y years. Account can be kept alive without deposits","") -> 
D204: =IF(ISERROR(INDEX('PPF Matuirty date Calculation'!$F$3:$G$18,MATCH('PPF Tracker'!J204,'PPF Matuirty date Calculation'!$G$3:$G$18,0),1)),D202+1,INDEX('PPF Matuirty date Calculation'!$F$3:$G$18,MATCH('PPF Tracker'!J204,'PPF Matuirty date Calculation'!$G$3:$G$18,0),1)) -> 13 | I204: =I188+1 -> 13 | J204: =CONCATENATE("FY ",$M$8+I204-1," - ",$M$8+I204) -> FY 2028 - 2029 | O204: =IF(ISERROR(CONCATENATE(INDEX('PPF Matuirty date Calculation'!$F$3:$G$18,MATCH('PPF Tracker'!J204,'PPF Matuirty date Calculation'!$G$3:$G$18,0),1),"th financial year")),CONCATENATE(D204,"th financial year"),CONCATENATE(INDEX('PPF Matuirty date Calculation'!$F$3:$G$18,MATCH('PPF Tracker'!J204,'PPF Matuirty date Calculation'!$G$3:$G$18,0),1),"th financial year")) -> 13th financial year
... 126 more rows

Sheet Post 15 yearsTracker
AD1: before 5th
D2: Use this sheet to track your PPF if you have extended it at the end of the 15 year period | AD2: after 5th
E5: Enter data only in green cells | J5: Account extension date | M5: ='PPF Matuirty date Calculation'!B9 -> 2031-04-01 | N5: This has to be entered in "PPF Matuirty date Calculation" sheet
J6: Maturity Date | M6: ='PPF Matuirty date Calculation'!B11 -> 2036-04-01
J8: Opening Balance on March 31st of | M8: 2015
J10: Balance at the start of 5Y extension block
L11: 469108
I13: 1 | J13: =CONCATENATE("FY ",$M$8+I13-1," - ",$M$8+I13) -> FY 2015 - 2016 | O13: Withdrawal can be made only once in a year
G14: Interest rate | H14: Deposited | J14: Month | K14: Deposit | L14: Balance | M14: Interest | O14: Withdrawal
G15: 0.081 | H15: before 5th | J15: Apr | K15: 5000 | L15: =$L$11+IF(H15="before 5th",K15,0) -> 474108 | M15: =L15*G15/12 -> 3200.229
D16: Withdrawal limit | F16: =60%*$L$11 -> 281464.8 | G16: =G15 -> 0.081 | H16: before 5th | J16: May | K16: 5000 | L16: =SUM($K$15:K15)+$L$11+IF(H16="before 5th",K16,0) -> 479108 | M16: =L16*G16/12 -> 3233.979 | P16: PPF investment limit
G17: =G16 -> 0.081 | H17: before 5th | J17: Jun | K17: 5000 | L17: =SUM($K$15:K16)+$L$11+IF(H17="before 5th",K17,0) -> 484108 | M17: 3267.729 | P17: 150000
H18: before 5th | J18: Jul | K18: 5000 | L18: =SUM($K$15:K17)+$L$11+IF(H18="before 5th",K18,0) -> 489108 | M18: 0 | P18: =IF(SUM(K15:K26)>P17,"Warning: total investment exceeds allowed limit","") -> 
G19: =G18 -> 0 | H19: before 5th | J19: Aug | K19: 5000 | L19: =SUM($K$15:K18)+$L$11+IF(H19="before 5th",K19,0) -> 494108 | M19: 0
G20: =G19 -> 0 | H20: before 5th | J20: Sep | K20: 5000 | L20: =SUM($K$15:K19)+$L$11+IF(H20="before 5th",K20,0) -> 499108 | M20: 0 | P20: =IF(N27>F16,"Withdrawal is above limit","") -> 
H21: before 5th | J21: Oct | K21: 5000 | L21: =SUM($K$15:K20)+$L$11+IF(H21="before 5th",K21,0) -> 504108 | M21: 0
G22: =G21 -> 0 | H22: before 5th | J22: Nov | K22: 5000 | L22: =SUM($K$15:K21)+$L$11+IF(H22="before 5th",K22,0) -> 509108 | M22: 0
G23: =G22 -> 0 | H23: before 5th | J23: Dec | K23: 5000 | L23: =SUM($K$15:K22)+$L$11+IF(H23="before 5th",K23,0) -> 514108 | M23: 0
H24: before 5th | J24: Jan | K24: 5000 | L24: =SUM($K$15:K23)+$L$11+IF(H24="before 5th",K24,0) -> 519108 | M24: 0
G25: =G24 -> 0 | H25: before 5th | J25: Feb | K25: 5000 | L25: =SUM($K$15:K24)+$L$11+IF(H25="before 5th",K25,0) -> 524108 | M25: 0
G26: =G25 -> 0 | H26: before 5th | J26: Mar | K26: 5000 | L26: =SUM($K$15:K25)+$L$11+IF(H26="before 5th",K26,0) -> 529108 | M26: 0
J27: Year End Balance | L27: =SUM(K15:K26)+SUM(M15:M26)+L11-N27 -> 538809.937 | N27: =O15 -> 0
I29: 2 | J29: =CONCATENATE("FY ",$M$8+I29-1," - ",$M$8+I29) -> FY 2016 - 2017 | O29: Withdrawal can be made only once in a year
G30: Interest rate | H30: Deposited | J30: Month | K30: Deposit | L30: Balance | M30: Interest | O30: Withdrawal
H31: before 5th | J31: Apr | K31: 5000 | L31: =$L$27+IF(H31="before 5th",K31,0) -> 543809.937 | M31: =L31*G31/12 -> 0
D32: Withdrawal limit | F32: =60%*$L$11 -> 281464.8 | G32: =G31 -> 0 | H32: before 5th | J32: May | K32: 5000 | L32: =SUM($K$31:K31)+$L$27+IF(H32="before 5th",K32,0) -> 548809.937 | M32: =L32*G32/12 -> 0 | P32: PPF investment limit
G33: =G32 -> 0 | H33: before 5th | J33: Jun | K33: 5000 | L33: =SUM($K$31:K32)+$L$27+IF(H33="before 5th",K33,0) -> 553809.937 | M33: 0 | P33: 150000
H34: before 5th | J34: Jul | K34: 5000 | L34: =SUM($K$31:K33)+$L$27+IF(H34="before 5th",K34,0) -> 558809.937 | M34: 0 | P34: =IF(SUM(K31:K42)>P33,"Warning: total investment exceeds allowed limit","") -> 
G35: =G34 -> 0 | H35: before 5th | J35: Aug | K35: 5000 | L35: =SUM($K$31:K34)+$L$27+IF(H35="before 5th",K35,0) -> 563809.937 | M35: 0
G36: =G35 -> 0 | H36: before 5th | J36: Sep | K36: 5000 | L36: =SUM($K$31:K35)+$L$27+IF(H36="before 5th",K36,0) -> 568809.937 | M36: 0 | P36: =IF(N43>F32,"Withdrawal is above limit","") -> 
H37: before 5th | J37: Oct | K37: 5000 | L37: =SUM($K$31:K36)+$L$27+IF(H37="before 5th",K37,0) -> 573809.937 | M37: 0
G38: =G37 -> 0 | H38: before 5th | J38: Nov | K38: 5000 | L38: =SUM($K$31:K37)+$L$27+IF(H38="before 5th",K38,0) -> 578809.937 | M38: 0
G39: =G38 -> 0 | H39: before 5th | J39: Dec | K39: 5000 | L39: =SUM($K$31:K38)+$L$27+IF(H39="before 5th",K39,0) -> 583809.937 | M39: 0
H40: before 5th | J40: Jan | K40: 5000 | L40: =SUM($K$31:K39)+$L$27+IF(H40="before 5th",K40,0) -> 588809.937 | M40: 0
G41: =G40 -> 0 | H41: before 5th | J41: Feb | K41: 5000 | L41: =SUM($K$31:K40)+$L$27+IF(H41="before 5th",K41,0) -> 593809.937 | M41: 0
G42: =G41 -> 0 | H42: before 5th | J42: Mar | K42: 5000 | L42: =SUM($K$31:K41)+$L$27+IF(H42="before 5th",K42,0) -> 598809.937 | M42: 0
J43: Year End Balance | L43: =SUM(K31:K42)+SUM(M31:M42)+L27-N43 -> 598809.937 | N43: =O31 -> 0
I45: 3 | J45: =CONCATENATE("FY ",$M$8+I45-1," - ",$M$8+I45) -> FY 2017 - 2018 | O45: Withdrawal can be made only once in a year
G46: Interest rate | H46: Deposited | J46: Month | K46: Deposit | L46: Balance | M46: Interest | O46: Withdrawal
H47: before 5th | J47: Apr | K47: 5000 | L47: =$L$43+IF(H47="before 5th",K47,0) -> 603809.937 | M47: =L47*G47/12 -> 0
D48: Withdrawal limit | F48: =60%*$L$11 -> 281464.8 | G48: =G47 -> 0 | H48: before 5th | J48: May | K48: 5000 | L48: =SUM($K$47:K47)+$L$43+IF(H48="before 5th",K48,0) -> 608809.937 | M48: =L48*G48/12 -> 0 | P48: PPF investment limit
G49: =G48 -> 0 | H49: before 5th | J49: Jun | K49: 5000 | L49: =SUM($K$47:K48)+$L$43+IF(H49="before 5th",K49,0) -> 613809.937 | M49: 0 | P49: 150000
H50: before 5th | J50: Jul | K50: 5000 | L50: =SUM($K$47:K49)+$L$43+IF(H50="before 5th",K50,0) -> 618809.937 | M50: 0 | P50: =IF(SUM(K47:K58)>P49,"Warning: total investment exceeds allowed limit","") -> 
G51: =G50 -> 0 | H51: before 5th | J51: Aug | K51: 5000 | L51: =SUM($K$47:K50)+$L$43+IF(H51="before 5th",K51,0) -> 623809.937 | M51: 0
G52: =G51 -> 0 | H52: before 5th | J52: Sep | K52: 5000 | L52: =SUM($K$47:K51)+$L$43+IF(H52="before 5th",K52,0) -> 628809.937 | M52: 0 | P52: =IF(N59>F48,"Withdrawal is above limit","") -> 
H53: before 5th | J53: Oct | K53: 5000 | L53: =SUM($K$47:K52)+$L$43+IF(H53="before 5th",K53,0) -> 633809.937 | M53: 0
G54: =G53 -> 0 | H54: before 5th | J54: Nov | K54: 5000 | L54: =SUM($K$47:K53)+$L$43+IF(H54="before 5th",K54,0) -> 638809.937 | M54: 0
G55: =G54 -> 0 | H55: before 5th | J55: Dec | K55: 5000 | L55: =SUM($K$47:K54)+$L$43+IF(H55="before 5th",K55,0) -> 643809.937 | M55: 0
H56: before 5th | J56: Jan | K56: 5000 | L56: =SUM($K$47:K55)+$L$43+IF(H56="before 5th",K56,0) -> 648809.937 | M56: 0
G57: =G56 -> 0 | H57: before 5th | J57: Feb | K57: 5000 | L57: =SUM($K$47:K56)+$L$43+IF(H57="before 5th",K57,0) -> 653809.937 | M57: 0
G58: =G57 -> 0 | H58: before 5th | J58: Mar | K58: 5000 | L58: =SUM($K$47:K57)+$L$43+IF(H58="before 5th",K58,0) -> 658809.937 | M58: 0
J59: Year End Balance | L59: =SUM(K47:K58)+SUM(M47:M58)+L43-N59 -> 658809.937 | N59: =O47 -> 0
I61: 4 | J61: =CONCATENATE("FY ",$M$8+I61-1," - ",$M$8+I61) -> FY 2018 - 2019 | O61: Withdrawal can be made only once in a year
G62: Interest rate | H62: Deposited | J62: Month | K62: Deposit | L62: Balance | M62: Interest | O62: Withdrawal
H63: before 5th | J63: Apr | K63: 5000 | L63: =$L$59+IF(H63="before 5th",K63,0) -> 663809.937 | M63: =L63*G63/12 -> 0
D64: Withdrawal limit | F64: =60%*$L$11 -> 281464.8 | G64: =G63 -> 0 | H64: before 5th | J64: May | K64: 5000 | L64: =SUM($K$63:K63)+$L$59+IF(H64="before 5th",K64,0) -> 668809.937 | M64: =L64*G64/12 -> 0 | P64: PPF investment limit
G65: =G64 -> 0 | H65: before 5th | J65: Jun | K65: 5000 | L65: =SUM($K$63:K64)+$L$59+IF(H65="before 5th",K65,0) -> 673809.937 | M65: 0 | P65: 150000
H66: before 5th | J66: Jul | K66: 5000 | L66: =SUM($K$63:K65)+$L$59+IF(H66="before 5th",K66,0) -> 678809.937 | M66: 0 | P66: =IF(SUM(K63:K74)>P65,"Warning: total investment exceeds allowed limit","") -> 
G67: =G66 -> 0 | H67: before 5th | J67: Aug | K67: 5000 | L67: =SUM($K$63:K66)+$L$59+IF(H67="before 5th",K67,0) -> 683809.937 | M67: 0
G68: =G67 -> 0 | H68: before 5th | J68: Sep | K68: 5000 | L68: =SUM($K$63:K67)+$L$59+IF(H68="before 5th",K68,0) -> 688809.937 | M68: 0 | P68: =IF(N75>F64,"Withdrawal is above limit","") -> 
H69: before 5th | J69: Oct | K69: 5000 | L69: =SUM($K$63:K68)+$L$59+IF(H69="before 5th",K69,0) -> 693809.937 | M69: 0
G70: =G69 -> 0 | H70: before 5th | J70: Nov | K70: 5000 | L70: =SUM($K$63:K69)+$L$59+IF(H70="before 5th",K70,0) -> 698809.937 | M70: 0
G71: =G70 -> 0 | H71: before 5th | J71: Dec | K71: 5000 | L71: =SUM($K$63:K70)+$L$59+IF(H71="before 5th",K71,0) -> 703809.937 | M71: 0
H72: before 5th | J72: Jan | K72: 5000 | L72: =SUM($K$63:K71)+$L$59+IF(H72="before 5th",K72,0) -> 708809.937 | M72: 0
G73: =G72 -> 0 | H73: before 5th | J73: Feb | K73: 5000 | L73: =SUM($K$63:K72)+$L$59+IF(H73="before 5th",K73,0) -> 713809.937 | M73: 0
G74: =G73 -> 0 | H74: before 5th | J74: Mar | K74: 5000 | L74: =SUM($K$63:K73)+$L$59+IF(H74="before 5th",K74,0) -> 718809.937 | M74: 0
J75: Year End Balance | L75: =SUM(K63:K74)+SUM(M63:M74)+L59-N75 -> 718809.937 | N75: =O63 -> 0
I77: 5 | J77: =CONCATENATE("FY ",$M$8+I77-1," - ",$M$8+I77) -> FY 2019 - 2020 | O77: Withdrawal can be made only once in a year
G78: Interest rate | H78: Deposited | J78: Month | K78: Deposit | L78: Balance | M78: Interest | O78: Withdrawal
H79: before 5th | J79: Apr | K79: 5000 | L79: =$L$75+IF(H79="before 5th",K79,0) -> 723809.937 | M79: =L79*G79/12 -> 0
D80: Withdrawal limit | F80: =60%*$L$11 -> 281464.8 | G80: =G79 -> 0 | H80: before 5th | J80: May | K80: 5000 | L80: =SUM($K$79:K79)+$L$75+IF(H80="before 5th",K80,0) -> 728809.937 | M80: =L80*G80/12 -> 0 | P80: PPF investment limit
G81: =G80 -> 0 | H81: before 5th | J81: Jun | K81: 5000 | L81: =SUM($K$79:K80)+$L$75+IF(H81="before 5th",K81,0) -> 733809.937 | M81: 0 | P81: 150000
H82: before 5th | J82: Jul | K82: 5000 | L82: =SUM($K$79:K81)+$L$75+IF(H82="before 5th",K82,0) -> 738809.937 | M82: 0 | P82: =IF(SUM(K79:K90)>P81,"Warning: total investment exceeds allowed limit","") -> 
G83: =G82 -> 0 | H83: before 5th | J83: Aug | K83: 5000 | L83: =SUM($K$79:K82)+$L$75+IF(H83="before 5th",K83,0) -> 743809.937 | M83: 0
G84: =G83 -> 0 | H84: before 5th | J84: Sep | K84: 5000 | L84: =SUM($K$79:K83)+$L$75+IF(H84="before 5th",K84,0) -> 748809.937 | M84: 0 | P84: =IF(N91>F80,"Withdrawal is above limit","") -> 
H85: before 5th | J85: Oct | K85: 5000 | L85: =SUM($K$79:K84)+$L$75+IF(H85="before 5th",K85,0) -> 753809.937 | M85: 0
G86: =G85 -> 0 | H86: before 5th | J86: Nov | K86: 5000 | L86: =SUM($K$79:K85)+$L$75+IF(H86="before 5th",K86,0) -> 758809.937 | M86: 0
G87: =G86 -> 0 | H87: before 5th | J87: Dec | K87: 5000 | L87: =SUM($K$79:K86)+$L$75+IF(H87="before 5th",K87,0) -> 763809.937 | M87: 0
H88: before 5th | J88: Jan | K88: 5000 | L88: =SUM($K$79:K87)+$L$75+IF(H88="before 5th",K88,0) -> 768809.937 | M88: 0
G89: =G88 -> 0 | H89: before 5th | J89: Feb | K89: 5000 | L89: =SUM($K$79:K88)+$L$75+IF(H89="before 5th",K89,0) -> 773809.937 | M89: 0
G90: =G89 -> 0 | H90: before 5th | J90: Mar | K90: 5000 | L90: =SUM($K$79:K89)+$L$75+IF(H90="before 5th",K90,0) -> 778809.937 | M90: 0
J91: Year End Balance | L91: =SUM(K79:K90)+SUM(M79:M90)+L75-N91 -> 778809.937 | N91: =O79 -> 0
I93: 6 | J93: =CONCATENATE("FY ",$M$8+I93-1," - ",$M$8+I93) -> FY 2020 - 2021 | O93: Withdrawal can be made only once in a year
G94: Interest rate | H94: Deposited | J94: Month | K94: Deposit | L94: Balance | M94: Interest | O94: Withdrawal
H95: before 5th | J95: Apr | K95: 5000 | L95: =$L$91+IF(H95="before 5th",K95,0) -> 783809.937 | M95: =L95*G95/12 -> 0
D96: =IF(#REF!=0,"Withdrawal limit","") ->  | F96: =60%*$L$91 -> 467285.9622 | G96: =G95 -> 0 | H96: before 5th | J96: May | K96: 5000 | L96: =SUM($K$95:K95)+$L$91+IF(H96="before 5th",K96,0) -> 788809.937 | M96: =L96*G96/12 -> 0 | P96: PPF investment limit
G97: =G96 -> 0 | H97: before 5th | J97: Jun | K97: 5000 | L97: =SUM($K$95:K96)+$L$91+IF(H97="before 5th",K97,0) -> 793809.937 | M97: 0 | P97: 150000
H98: before 5th | J98: Jul | K98: 5000 | L98: =SUM($K$95:K97)+$L$91+IF(H98="before 5th",K98,0) -> 798809.937 | M98: 0 | P98: =IF(SUM(K95:K106)>P97,"Warning: total investment exceeds allowed limit","") -> 
G99: =G98 -> 0 | H99: before 5th | J99: Aug | K99: 5000 | L99: =SUM($K$95:K98)+$L$91+IF(H99="before 5th",K99,0) -> 803809.937 | M99: 0
G100: =G99 -> 0 | H100: before 5th | J100: Sep | K100: 5000 | L100: =SUM($K$95:K99)+$L$91+IF(H100="before 5th",K100,0) -> 808809.937 | M100: 0 | P100: =IF(N107>F96,"Withdrawal is above limit","") -> 
H101: before 5th | J101: Oct | K101: 5000 | L101: =SUM($K$95:K100)+$L$91+IF(H101="before 5th",K101,0) -> 813809.937 | M101: 0
G102: =G101 -> 0 | H102: before 5th | J102: Nov | K102: 5000 | L102: =SUM($K$95:K101)+$L$91+IF(H102="before 5th",K102,0) -> 818809.937 | M102: 0
G103: =G102 -> 0 | H103: before 5th | J103: Dec | K103: 5000 | L103: =SUM($K$95:K102)+$L$91+IF(H103="before 5th",K103,0) -> 823809.937 | M103: 0
H104: before 5th | J104: Jan | K104: 5000 | L104: =SUM($K$95:K103)+$L$91+IF(H104="before 5th",K104,0) -> 828809.937 | M104: 0
G105: =G104 -> 0 | H105: before 5th | J105: Feb | K105: 5000 | L105: =SUM($K$95:K104)+$L$91+IF(H105="before 5th",K105,0) -> 833809.937 | M105: 0
G106: =G105 -> 0 | H106: before 5th | J106: Mar | K106: 5000 | L106: =SUM($K$95:K105)+$L$91+IF(H106="before 5th",K106,0) -> 838809.937 | M106: 0
J107: Year End Balance | L107: =SUM(K95:K106)+SUM(M95:M106)+L91-N107 -> 838809.937 | N107: =O95 -> 0
I109: 7 | J109: =CONCATENATE("FY ",$M$8+I109-1," - ",$M$8+I109) -> FY 2021 - 2022 | O109: Withdrawal can be made only once in a year
G110: Interest rate | H110: Deposited | J110: Month | K110: Deposit | L110: Balance | M110: Interest | O110: Withdrawal
H111: before 5th | J111: Apr | K111: 5000 | L111: =$L$107+IF(H111="before 5th",K111,0) -> 843809.937 | M111: =L111*G111/12 -> 0
D112: =IF(#REF!=0,"Withdrawal limit","") ->  | F112: =60%*$L$91 -> 467285.9622 | G112: =G111 -> 0 | H112: before 5th | J112: May | K112: 5000 | L112: =SUM($K$111:K111)+$L$107+IF(H112="before 5th",K112,0) -> 848809.937 | M112: =L112*G112/12 -> 0 | P112: PPF investment limit
G113: =G112 -> 0 | H113: before 5th | J113: Jun | K113: 5000 | L113: =SUM($K$111:K112)+$L$107+IF(H113="before 5th",K113,0) -> 853809.937 | M113: 0 | P113: 150000
H114: before 5th | J114: Jul | K114: 5000 | L114: =SUM($K$111:K113)+$L$107+IF(H114="before 5th",K114,0) -> 858809.937 | M114: 0 | P114: =IF(SUM(K111:K122)>P113,"Warning: total investment exceeds allowed limit","") -> 
G115: =G114 -> 0 | H115: before 5th | J115: Aug | K115: 5000 | L115: =SUM($K$111:K114)+$L$107+IF(H115="before 5th",K115,0) -> 863809.937 | M115: 0
G116: =G115 -> 0 | H116: before 5th | J116: Sep | K116: 5000 | L116: =SUM($K$111:K115)+$L$107+IF(H116="before 5th",K116,0) -> 868809.937 | M116: 0 | P116: =IF(N123>F112,"Withdrawal is above limit","") -> 
H117: before 5th | J117: Oct | K117: 5000 | L117: =SUM($K$111:K116)+$L$107+IF(H117="before 5th",K117,0) -> 873809.937 | M117: 0
G118: =G117 -> 0 | H118: before 5th | J118: Nov | K118: 5000 | L118: =SUM($K$111:K117)+$L$107+IF(H118="before 5th",K118,0) -> 878809.937 | M118: 0
G119: =G118 -> 0 | H119: before 5th | J119: Dec | K119: 5000 | L119: =SUM($K$111:K118)+$L$107+IF(H119="before 5th",K119,0) -> 883809.937 | M119: 0
H120: before 5th | J120: Jan | K120: 5000 | L120: =SUM($K$111:K119)+$L$107+IF(H120="before 5th",K120,0) -> 888809.937 | M120: 0
G121: =G120 -> 0 | H121: before 5th | J121: Feb | K121: 5000 | L121: =SUM($K$111:K120)+$L$107+IF(H121="before 5th",K121,0) -> 893809.937 | M121: 0
G122: =G121 -> 0 | H122: before 5th | J122: Mar | K122: 5000 | L122: =SUM($K$111:K121)+$L$107+IF(H122="before 5th",K122,0) -> 898809.937 | M122: 0
J123: Year End Balance | L123: =SUM(K111:K122)+SUM(M111:M122)+L107-N123 -> 898809.937 | N123: =O111 -> 0
I125: 8 | J125: =CONCATENATE("FY ",$M$8+I125-1," - ",$M$8+I125) -> FY 2022 - 2023 | O125: Withdrawal can be made only once in a year
G126: Interest rate | H126: Deposited | J126: Month | K126: Deposit | L126: Balance | M126: Interest | O126: Withdrawal
H127: before 5th | J127: Apr | K127: 5000 | L127: =$L$123+IF(H127="before 5th",K127,0) -> 903809.937 | M127: =L127*G127/12 -> 0
D128: =IF(#REF!=0,"Withdrawal limit","") ->  | F128: =60%*$L$91 -> 467285.9622 | G128: =G127 -> 0 | H128: before 5th | J128: May | K128: 5000 | L128: =SUM($K$127:K127)+$L$123+IF(H128="before 5th",K128,0) -> 908809.937 | M128: =L128*G128/12 -> 0 | P128: PPF investment limit
G129: =G128 -> 0 | H129: before 5th | J129: Jun | K129: 5000 | L129: =SUM($K$127:K128)+$L$123+IF(H129="before 5th",K129,0) -> 913809.937 | M129: 0 | P129: 150000
H130: before 5th | J130: Jul | K130: 5000 | L130: =SUM($K$127:K129)+$L$123+IF(H130="before 5th",K130,0) -> 918809.937 | M130: 0 | P130: =IF(SUM(K127:K138)>P129,"Warning: total investment exceeds allowed limit","") -> 
G131: =G130 -> 0 | H131: before 5th | J131: Aug | K131: 5000 | L131: =SUM($K$127:K130)+$L$123+IF(H131="before 5th",K131,0) -> 923809.937 | M131: 0
G132: =G131 -> 0 | H132: before 5th | J132: Sep | K132: 5000 | L132: =SUM($K$127:K131)+$L$123+IF(H132="before 5th",K132,0) -> 928809.937 | M132: 0 | P132: =IF(N139>F128,"Withdrawal is above limit","") -> 
H133: before 5th | J133: Oct | K133: 5000 | L133: =SUM($K$127:K132)+$L$123+IF(H133="before 5th",K133,0) -> 933809.937 | M133: 0
G134: =G133 -> 0 | H134: before 5th | J134: Nov | K134: 5000 | L134: =SUM($K$127:K133)+$L$123+IF(H134="before 5th",K134,0) -> 938809.937 | M134: 0
G135: =G134 -> 0 | H135: before 5th | J135: Dec | K135: 5000 | L135: =SUM($K$127:K134)+$L$123+IF(H135="before 5th",K135,0) -> 943809.937 | M135: 0
H136: before 5th | J136: Jan | K136: 5000 | L136: =SUM($K$127:K135)+$L$123+IF(H136="before 5th",K136,0) -> 948809.937 | M136: 0
G137: =G136 -> 0 | H137: before 5th | J137: Feb | K137: 5000 | L137: =SUM($K$127:K136)+$L$123+IF(H137="before 5th",K137,0) -> 953809.937 | M137: 0
G138: =G137 -> 0 | H138: before 5th | J138: Mar | K138: 5000 | L138: =SUM($K$127:K137)+$L$123+IF(H138="before 5th",K138,0) -> 958809.937 | M138: 0
J139: Year End Balance | L139: =SUM(K127:K138)+SUM(M127:M138)+L123-N139 -> 958809.937 | N139: =O127 -> 0
I141: 9 | J141: =CONCATENATE("FY ",$M$8+I141-1," - ",$M$8+I141) -> FY 2023 - 2024 | O141: Withdrawal can be made only once in a year
G142: Interest rate | H142: Deposited | J142: Month | K142: Deposit | L142: Balance | M142: Interest | O142: Withdrawal
H143: before 5th | J143: Apr | K143: 5000 | L143: =$L$139+IF(H143="before 5th",K143,0) -> 963809.937 | M143: =L143*G143/12 -> 0
D144: =IF(#REF!=0,"Withdrawal limit","") ->  | F144: =60%*$L$91 -> 467285.9622 | G144: =G143 -> 0 | H144: before 5th | J144: May | K144: 5000 | L144: =SUM($K$143:K143)+$L$139+IF(H144="before 5th",K144,0) -> 968809.937 | M144: =L144*G144/12 -> 0 | P144: PPF investment limit
G145: =G144 -> 0 | H145: before 5th | J145: Jun | K145: 5000 | L145: =SUM($K$143:K144)+$L$139+IF(H145="before 5th",K145,0) -> 973809.937 | M145: 0 | P145: 150000
H146: before 5th | J146: Jul | K146: 5000 | L146: =SUM($K$143:K145)+$L$139+IF(H146="before 5th",K146,0) -> 978809.937 | M146: 0 | P146: =IF(SUM(K143:K154)>P145,"Warning: total investment exceeds allowed limit","") -> 
G147: =G146 -> 0 | H147: before 5th | J147: Aug | K147: 5000 | L147: =SUM($K$143:K146)+$L$139+IF(H147="before 5th",K147,0) -> 983809.937 | M147: 0
G148: =G147 -> 0 | H148: before 5th | J148: Sep | K148: 5000 | L148: =SUM($K$143:K147)+$L$139+IF(H148="before 5th",K148,0) -> 988809.937 | M148: 0 | P148: =IF(N155>F144,"Withdrawal is above limit","") -> 
H149: before 5th | J149: Oct | K149: 5000 | L149: =SUM($K$143:K148)+$L$139+IF(H149="before 5th",K149,0) -> 993809.937 | M149: 0
G150: =G149 -> 0 | H150: before 5th | J150: Nov | K150: 5000 | L150: =SUM($K$143:K149)+$L$139+IF(H150="before 5th",K150,0) -> 998809.937 | M150: 0
G151: =G150 -> 0 | H151: before 5th | J151: Dec | K151: 5000 | L151: =SUM($K$143:K150)+$L$139+IF(H151="before 5th",K151,0) -> 1003809.937 | M151: 0
H152: before 5th | J152: Jan | K152: 5000 | L152: =SUM($K$143:K151)+$L$139+IF(H152="before 5th",K152,0) -> 1008809.937 | M152: 0
G153: =G152 -> 0 | H153: before 5th | J153: Feb | K153: 5000 | L153: =SUM($K$143:K152)+$L$139+IF(H153="before 5th",K153,0) -> 1013809.937 | M153: 0
G154: =G153 -> 0 | H154: before 5th | J154: Mar | K154: 5000 | L154: =SUM($K$143:K153)+$L$139+IF(H154="before 5th",K154,0) -> 1018809.937 | M154: 0
J155: Year End Balance | L155: =SUM(K143:K154)+SUM(M143:M154)+L139-N155 -> 1018809.937 | N155: =O143 -> 0
I157: 10 | J157: =CONCATENATE("FY ",$M$8+I157-1," - ",$M$8+I157) -> FY 2024 - 2025 | O157: Withdrawal can be made only once in a year
G158: Interest rate | H158: Deposited | J158: Month | K158: Deposit | L158: Balance | M158: Interest | O158: Withdrawal
H159: before 5th | J159: Apr | K159: 5000 | L159: =$L$155+IF(H159="before 5th",K159,0) -> 1023809.937 | M159: =L159*G159/12 -> 0
D160: =IF(#REF!=0,"Withdrawal limit","") ->  | F160: =60%*$L$91 -> 467285.9622 | G160: =G159 -> 0 | H160: before 5th | J160: May | K160: 5000 | L160: =SUM($K$159:K159)+$L$155+IF(H160="before 5th",K160,0) -> 1028809.937 | M160: =L160*G160/12 -> 0 | P160: PPF investment limit
G161: =G160 -> 0 | H161: before 5th | J161: Jun | K161: 5000 | L161: =SUM($K$159:K160)+$L$155+IF(H161="before 5th",K161,0) -> 1033809.937 | M161: 0 | P161: 150000
H162: before 5th | J162: Jul | K162: 5000 | L162: =SUM($K$159:K161)+$L$155+IF(H162="before 5th",K162,0) -> 1038809.937 | M162: 0 | P162: =IF(SUM(K159:K170)>P161,"Warning: total investment exceeds allowed limit","") -> 
G163: =G162 -> 0 | H163: before 5th | J163: Aug | K163: 5000 | L163: =SUM($K$159:K162)+$L$155+IF(H163="before 5th",K163,0) -> 1043809.937 | M163: 0
G164: =G163 -> 0 | H164: before 5th | J164: Sep | K164: 5000 | L164: =SUM($K$159:K163)+$L$155+IF(H164="before 5th",K164,0) -> 1048809.937 | M164: 0 | P164: =IF(N171>F160,"Withdrawal is above limit","") -> 
H165: before 5th | J165: Oct | K165: 5000 | L165: =SUM($K$159:K164)+$L$155+IF(H165="before 5th",K165,0) -> 1053809.937 | M165: 0
G166: =G165 -> 0 | H166: before 5th | J166: Nov | K166: 5000 | L166: =SUM($K$159:K165)+$L$155+IF(H166="before 5th",K166,0) -> 1058809.937 | M166: 0
G167: =G166 -> 0 | H167: before 5th | J167: Dec | K167: 5000 | L167: =SUM($K$159:K166)+$L$155+IF(H167="before 5th",K167,0) -> 1063809.937 | M167: 0
H168: before 5th | J168: Jan | K168: 5000 | L168: =SUM($K$159:K167)+$L$155+IF(H168="before 5th",K168,0) -> 1068809.937 | M168: 0
G169: =G168 -> 0 | H169: before 5th | J169: Feb | K169: 5000 | L169: =SUM($K$159:K168)+$L$155+IF(H169="before 5th",K169,0) -> 1073809.937 | M169: 0
G170: =G169 -> 0 | H170: before 5th | J170: Mar | K170: 5000 | L170: =SUM($K$159:K169)+$L$155+IF(H170="before 5th",K170,0) -> 1078809.937 | M170: 0
J171: Year End Balance | L171: =SUM(K159:K170)+SUM(M159:M170)+L155-N171 -> 1078809.937 | N171: =O159 -> 0
